Directorate,Service Category,Supplier Name,Payment Date,Transaction No.,Net Amount,Purpose_of_the_expenditure,Merchant Category
People and Places,Environmental Services,A & C Weber UK LTD,03/01/2023,PE146273,18643.20,480 x 360ltr Grey Carcasses @ 38.84 per unit,"Provision of Bins, Boxes and Sacks"
People and Places,Environmental Services,A & C Weber UK LTD,03/01/2023,PE146273,100.00,"DeliveryPrices as per ESPO Contract Schedule 860ADDAnticipated delivery ASAP (can accept delivery any time, but please advise in advance ifpossible)Please ensure bins are stacked no higher than 8 bins due to unloading H&S issuese-mai","Provision of Bins, Boxes and Sacks"
People and Places,Environmental Services,A & C Weber UK LTD,03/01/2023,PE146273,13450.00,500 x 240ltr Grey Bins c/w Grey Lid @ 26.90 per unit,"Provision of Bins, Boxes and Sacks"
People and Places,Parking Services,A1 Streamline Road,31/01/2023,PE146968,650.00,"Your quotation 14383 
Carry out line marking works to Quail Holme Road car park, Knott End as per supplied drawing","Paths, Roads and Car Park Mtnce Annual"
People and Places,Parking Services,A1 Streamline Road,31/01/2023,PE146935,703.55,"Your quotation 14384
Carry out line marking works to High Street car park, Garstang as per supplied drawing","Paths, Roads and Car Park Mtnce Annual"
People and Places,Parking Services,A1 Streamline Road,27/01/2023,PE146922,1277.37,Your quotation 14385Carry out line marking works to Cleveleys Bus Station as per supplied drawing plus additional work,"Paths, Roads and Car Park Mtnce Annual"
People and Places,Parking Services,A1 Streamline Road,27/01/2023,PE146923,1125.00,"Your quotation 14381Carry out line marking works to Derby Road East car park, Cleveleys as per supplied drawing plus additional work","Paths, Roads and Car Park Mtnce Annual"
People and Places,Parking Services,A1 Streamline Road,27/01/2023,PE146919,650.00,"Your quotation 14382Carry out line marking works to Derby Road West car park, Cleveleys as per supplied drawing","Paths, Roads and Car Park Mtnce Annual"
People and Places,Cultural and Related Services,ADP ENVIRONMENTAL SERVICES LTD,30/01/2023,PE146732,4264.80,Copse Road Depot: repair works to punping station,Responsive Building Maintenance
People and Places,Central Services to the Public,ADR Mediation & Training CIC,11/01/2023,PE146458,880.00,"Mediation case management for a total of 4400, which equates for 10 cases at a cost of 440 per case utilising COMF",Contain Outbreak Management Fund
People and Places,Planning and Development Servs,AG & P Jackson,25/01/2023,PE146878,410.00,"Alan Jackson - Agricultural Consultant fee for planning application 22/01182/FUL Springfield Farm, Scorton",Consultants Fees
People and Places,Planning and Development Servs,AG & P Jackson,27/01/2023,PE146920,497.00,"Alan Jackson - Agricultural Consultant fee for planning application 22/01197/OUT Four Fields Farm, Pilling",Consultants Fees
People and Places,Support Services,Allcool (NW) Ltd,16/01/2023,PE146531,126.00,Civic Centre: investigate AHU serving council chamber,Responsive Building Maintenance
People and Places,Support Services,Allcool (NW) Ltd,16/01/2023,PE146532,263.02,Investigate AHU in fault,Responsive Building Maintenance
People and Places,Support Services,Allcool (NW) Ltd,12/01/2023,PE146308,150.00,"defosted extract fan and checked, tested and left operational",Responsive Building Maintenance
Resources,Support Services,Amazon Business,16/01/2023,RS146535,20.41,Europa 120 Page Wire Ruled Notemaker - Assorted Colour (Pack of 10).,Stationery
Resources,Support Services,Amazon Business,17/01/2023,RS146573,70.10,"HDMI to VGA 1.8M,Snowkids HDMI to VGA Cable, (1080P 60Hz) Unidirection 15 Pin HDMI to VGA Converter Cord Male to Male.",Comp Hardware Purchases
Resources,Support Services,Amazon Business,17/01/2023,RS146570,93.20,"BENFEI Active DisplayPort to HDMI Adapter 4K, Compatible with PC,Laptops, Desktop, Tablets, or DisplayPort docking stations, Supporting Eyefinity for Multi-screen Gaming.",Comp Hardware Purchases
Resources,Support Services,Amazon Business,25/01/2023,RS146881,66.60,iCatchy for Samsung Galaxy A13 4G Case Ring Holder Military Grade Protective Silicone Shockproof Tough Armor Phone Cover Compatible with Samsung Galaxy A13 4G Phone Cover (Black).,Comp Hardware Purchases
Resources,Support Services,Amazon Business,25/01/2023,RS146883,54.10,"UseBean USB C to USB C Cable 100W 0.5M (2 Pack), USB 3.2 Type C Gen2x2 20Gbps Data Transfer Cable PD Fast Charging,4K Video Monitor Cord Compatible for Thunderbolt 3 MacBook Pro, iPad Pro,Galaxy S21.",Comp Hardware Purchases
Resources,Support Services,Amazon Business,25/01/2023,RS146882,316.57,"HP ProBook 450 G8 15.6`` Laptop - Core i5 2.4GHz CPU, 8GB RAM, 256GB SSD, Iris Xe, Windows 10 Pro (Renewed)HP ProBook 450 G8 15.6`` Laptop - Core i5 2.4GHz CPU, 8GB RAM, 256GB SSD, Iris Xe, Windows 10 Pro (Renewed).",Comp Hardware Purchases
Resources,Support Services,Amazon Business,25/01/2023,RS146855,1300.00,Samsung Galaxy A13 5G Black 64GB.,Comp Hardware Purchases
Resources,Support Services,Amazon Business,12/01/2023,RS146514,149.80,"Nestling� Laptop Stand, 6 Level Height Adjustable Laptop Stand Desk, Aluminum Ventilated Cooling MacBook Stand Laptop Riser, Silicone Non-Slip Notebook Riser Mount 10-17``.",Comp Hardware Purchases
Resources,Support Services,Amazon Business,12/01/2023,RS146455,333.20,"VonHaus Monitor Stand for 13-27? Screens - Single Arm Desk Mount Bracket Free Standing - Ergonomic 15� Tilt, 360� Rotation & 180� Swivel Arm - VESA Dimensions: 75x75-100x100",Comp Hardware Purchases
Resources,Support Services,Amazon Business,12/01/2023,RS146454,53.70,"HDMI to DVI, Benfei HDMI to DVI Cable 1.8m Bi Directional DVI-D 24+1 Male to HDMI Male High Speed Adapter Cable Support 1080P Full HD Compatible for Raspberry Pi, Roku, Xbox One, PS4 PS3",Comp Hardware Purchases
Resources,Support Services,Amazon Business,12/01/2023,RS146456,33.32,Duronic Dual Monitor Arm Stand Desk Mount DM25D2 | For Two 13-27 Inch LED LCD PC Computer or TV Screens | Freestanding Double Bracket | VESA 75 100 | Tilt Swivel Rotate.,Comp Hardware Purchases
Resources,Support Services,Amazon Business,24/01/2023,RS146763,14.99,office chair cushion,Purchase of Tools or Equipment
Resources,Support Services,Amazon Business,12/01/2023,RS146515,119.88,"TECKNET Wrist Rest Mat, Keyboard and Mouse Wrist Support Pad Set, Comfortable Memory Foam Mouse Mat with Wrist Cushion Support, Anti-Slip Ergonomic Mouse Pad for Computer Laptop Working Gaming.",Computer Stationery and Consumables
Resources,Support Services,Amazon Business,04/01/2023,RS145364,41.59,TECKNET Mouse Mat with Memory Foam Rest -Non-slip Rubber base- Special-Textured Water-Resistant Surface.,Computer Stationery and Consumables
Resources,Support Services,Amazon Business,04/01/2023,RS145364,-2.49,Promotions,Computer Stationery and Consumables
Resources,Support Services,Amazon Business,20/01/2023,RS146720,3.32,Amazon order of:3 x 5pack of basketskeyring fobsNumber stickers for lockers,Miscellaneous Expenses
Resources,Support Services,Amazon Business,19/01/2023,RS146660,79.99,Amazon order of:3 x 5pack of basketskeyring fobsNumber stickers for lockers,Miscellaneous Expenses
Resources,Support Services,Amazon Business,03/01/2023,RS146260,9.98,clinell universal wipes - 6.60coasters - 9.98Lumbar support - 5.82,Miscellaneous Expenses
Resources,Support Services,Amazon Business,03/01/2023,RS146259,5.82,clinell universal wipes - 6.60coasters - 9.98Lumbar support - 5.82,Miscellaneous Expenses
Resources,Support Services,Amazon Business,03/01/2023,RS146258,6.60,clinell universal wipes - 6.60coasters - 9.98Lumbar support - 5.82,Miscellaneous Expenses
Resources,Support Services,Amazon Business,20/01/2023,RS146688,59.34,Amazon order of:3 x 5pack of basketskeyring fobsNumber stickers for lockers,Miscellaneous Expenses
Resources,Support Services,Amazon Business,20/01/2023,RS146721,3.62,Amazon order of:3 x 5pack of basketskeyring fobsNumber stickers for lockers,Miscellaneous Expenses
Resources,Support Services,Amazon Business,17/01/2023,RS146576,745.83,"Brother MFC-J6945DW Colour Inkjet Printer - All-in-One, Wireless/USB 2.0/Network/NFC, Printer/Scanner/Copier/Fax Machine, 2 Sided Printing, 2 Paper Trays, A3 Printer, X-Series Business Printer",Comp Hardware Purchases
People and Places,Public Transport,Andrew Signs LTD,26/01/2023,PE146904,140.00,various signs from January 2023,Repairs to Non-WBC Buildings
People and Places,Environmental Services,Andrew Signs LTD,26/01/2023,PE146904,145.00,various signs from January 2023,Materials and Consumables
People and Places,Corporate and Democratic Core,Andrew Signs LTD,26/01/2023,PE146904,15.00,various signs from January 2023,Special Events
People and Places,Highways,Andrew Signs LTD,26/01/2023,PE146904,193.50,various signs from January 2023,Naming of Streets
People and Places,Parking Services,Andrew Signs LTD,10/01/2023,PE146447,357.00,ConfirmationProvide 20 no disable car park signs as per design submitted,"Paths, Roads and Car Park Mtnce Annual"
People and Places,Cultural and Related Services,Andrew Signs LTD,16/01/2023,PE146558,167.30,tide tables,Amenity and Information Signs
People and Places,Cultural and Related Services,Andrew Signs LTD,16/01/2023,PE146557,167.30,tide tables for 2023,Amenity and Information Signs
People and Places,Support Services,Apse,03/01/2023,PE146272,816.07,"Supervisory Skills Course - 6th December 2022Copse Road Depot, Fleetwood FY7 6RP",Technical Training
People and Places,Support Services,Apse,11/01/2023,PE146513,159.00,1 NETWORKS SEMINAR  1/2 DEC 2022 FOR LOU PHILLIPS CEMETERIES,Corporate and Professional Subscriptions
People and Places,Environmental Services,Apse,03/01/2023,PE146272,816.06,Training,Street Cleansing Projects
People and Places,Cultural and Related Services,AvantiGas ON Ltd,09/01/2023,PE146265,143.28,Gas charges for Thornton Little Theatre for the period 01/12/22-05/12/22,Gas
People and Places,Support Services,AvantiGas ON Ltd,09/01/2023,PE146266,707.55,Gas charges for the Civic Centre for the period 01/12/22-05/12/22,Gas
People and Places,Planning and Development Servs,AvantiGas ON Ltd,09/01/2023,PE146267,27.25,Gas charges for Copse Road for the period 01/12/22-05/12/22,Gas
People and Places,Planning and Development Servs,AvantiGas ON Ltd,09/01/2023,PE146281,1333.51,Gas charges for Fleetwood Market for the period 01/12/22-06/12/22,Gas
People and Places,Environmental Services,Balmers GM LTD,25/01/2023,PE146809,934.67,Parts,Daywork Materials (Excl.Tyres)
People and Places,Non Service Related Exp,Balmers GM LTD,13/01/2023,PE146549,22300.00,"FAO Steve PulmanSupply as per your quotation through the Chest ref: DN6409901 x new Grillo FD900 out front rotary mower complete with high tip grass collector, full RTA lighting and flashing beacon, front and rear spare wheels, road tax and plate.",Vehicles
People and Places,Cultural and Related Services,Batcheller Monkhouse,03/01/2023,PE146269,2000.00,Surveyor?s fees incurred in advising you the Owner of the site at Thornton Sports Centre on matters relating to EE & H3G?s proposal to renew their lease at this site,Consultants Fees
Resources,Support Services,Bates Office Services Ltd,27/01/2023,RS146718,76.66,Back Support,Purchase Furniture
Resources,Support Services,Bates Office Services Ltd,11/01/2023,RS146453,35.53,NEW GUARD MAN GUS ENV 241X165X25 PK100,Stationery
Resources,Support Services,Bates Office Services Ltd,25/01/2023,RS146880,5.14,3M POSTIT INDEX RED 1INCH 680-1,Stationery
Resources,Support Services,Bates Office Services Ltd,25/01/2023,RS146880,5.22,3M POSTIT INDEX BLUE 1INCH 680-2,Stationery
Resources,Support Services,Bates Office Services Ltd,25/01/2023,RS146880,30.19,C4 MANILLA GMD ENVELOPES 25 20PK,Stationery
People and Places,Cultural and Related Services,Bates Office Services Ltd,25/01/2023,PE146452,15.78,WB BOXFILE CLOUD FOOLSCAP,Stationery
People and Places,Cultural and Related Services,Bates Office Services Ltd,25/01/2023,PE146452,1.80,Initiative Glue Stick Large 40gm,Stationery
People and Places,Cultural and Related Services,Bates Office Services Ltd,25/01/2023,PE146452,6.49,POST-IT S/STICKY 76X76MM YELLOW NOTE PK6,Stationery
People and Places,Cultural and Related Services,Bates Office Services Ltd,25/01/2023,PE146452,13.40,INITIATIVE SUSPENSION FILE FC PK50,Stationery
People and Places,Cultural and Related Services,Bates Office Services Ltd,25/01/2023,PE146452,1.07,Q-CONNECT SUSP FILE TABS CLEAR P50,Stationery
People and Places,Cultural and Related Services,Bates Office Services Ltd,25/01/2023,PE146452,0.90,INITIATIVE PP TAPE 24MMX66M CLEAR,Stationery
People and Places,Cultural and Related Services,Bates Office Services Ltd,25/01/2023,PE146452,3.34,Q CONNECT PAPERCLIPS 26MM NO TEAR PK100,Stationery
People and Places,Cultural and Related Services,Bates Office Services Ltd,25/01/2023,PE146452,19.77,A4 80GSM WHITEBOX COPIER PAPER,Stationery
Resources,Housing General Fund,Bates Office Services Ltd,04/01/2023,RS146299,76.66, 1 ADJUSTABLE LUMBAR SUPPORT CE77701,Purchase of Tools or Equipment
People and Places,Support Services,Bates Office Services Ltd,09/01/2023,PE146319,116.62,ELBA SPRNG PKT FILE FC 320GM BUF P25,Stationery
People and Places,Support Services,Bates Office Services Ltd,09/01/2023,PE146319,5.18,SPIRAL SHORTHAND NOTEBOOK 80LF PK10,Stationery
People and Places,Support Services,Bates Office Services Ltd,09/01/2023,PE146319,3.60,A4 CLEAR PUNCHED POCKETS PK100,Stationery
People and Places,Support Services,Bates Office Services Ltd,09/01/2023,PE146319,4.38,Q-CONNECT SPIRAL PAD EXEC A4 80SHT,Stationery
People and Places,Support Services,Bates Office Services Ltd,09/01/2023,PE146319,13.74,WB A5 SPIRAL PAD 80SHT BLUE,Stationery
Resources,Support Services,Bates Office Services Ltd,26/01/2023,RS146899,44.50,COLOP PRINTER 38 DATE STAMP RECEIVED,Stationery
Resources,Support Services,Bates Office Services Ltd,26/01/2023,RS146899,4.99,COLOP E/4430 BLACK INK PADS PACK 2,Stationery
Resources,Support Services,Bates Office Services Ltd,26/01/2023,RS145824,35.53,76x127mm Yellow Post Its 1 pack of 12 Sign here marker 1 pack guildhall spring packet file 349 yellow pk25 Guildhall HW Pocket Spiral File pk25  C4 white WDW 100GSm s/s pk250 Manilla Gusset Envelope p/s pk100 WB Cut Flush Folder PK100,Stationery
Resources,Support Services,Bates Office Services Ltd,26/01/2023,RS145823,94.13,76x127mm Yellow Post Its 1 pack of 12 Sign here marker 1 pack guildhall spring packet file 349 yellow pk25 Guildhall HW Pocket Spiral File pk25  C4 white WDW 100GSm s/s pk250 Manilla Gusset Envelope p/s pk100 WB Cut Flush Folder PK100,Stationery
Resources,Support Services,Bates Office Services Ltd,30/01/2023,RS146719,77.14,1 pack of 8 SE04994 20 10 part divider A4 DV1400 20 5 part divider A4 DV1416 2 packs of 10 drywipe marker BLK MK8726 2 packs of 10 drywipe marker Red MK8727 1 pack of 12 Pencil HB PN7335 2 Heavy Duty 2 Hole Punch Blk PR9172 1 WB Cut flush folder PK100 PK5,Stationery
Resources,Support Services,Bates Office Services Ltd,11/01/2023,RS146512,44.50,COLOP PRINTER 38 DATE STAMP RECEIVED,Stationery
People and Places,Cultural and Related Services,Bates Office Services Ltd,09/01/2023,PE146284,26.18,TORK T8 SMARTONE TOILET TISSUE 2 PLY PK6,Stationery
People and Places,Support Services,Bates Office Services Ltd,04/01/2023,PE146300,2.85,PUKKA RULED METALLIC JOTTA PAD A5 PK3,Stationery
People and Places,Support Services,Bates Office Services Ltd,16/01/2023,PE145678,7.07,ENERGIZER INDL BATTERY AA/LR6 PK10,Stationery
People and Places,Support Services,Bates Office Services Ltd,16/01/2023,PE145678,34.58,CONVECTOR HEATER 2KW WHITE,Stationery
People and Places,Support Services,Bates Office Services Ltd,16/01/2023,PE145678,6.90,DESK DIARY WEEK VIEW A5 BLACK 2021,Stationery
People and Places,Support Services,Bates Office Services Ltd,16/01/2023,PE145678,22.60,DESK DIARY DAY PAGE A5 BLUE 2021,Stationery
People and Places,Support Services,Bates Office Services Ltd,09/01/2023,PE146319,4.46,BIC CRISTAL BALLPOINT MEDIUM BLACK PK100,Stationery
People and Places,Support Services,Bates Office Services Ltd,09/01/2023,PE146319,19.81,Q CONNECT LACH FILE PPRBKD FC BLK,Stationery
People and Places,Support Services,Bates Office Services Ltd,09/01/2023,PE146319,8.44,Initiative Env C5 SSeal 90g Wh Wdw 500s,Stationery
People and Places,Support Services,Bates Office Services Ltd,09/01/2023,PE146319,7.62,Initiative Env C5 SSeal 90g Wht 500s,Stationery
People and Places,Support Services,Bates Office Services Ltd,09/01/2023,PE146319,5.13,Initiative Env C4 SSeal 90g Wh Wdw 250s,Stationery
People and Places,Support Services,Bates Office Services Ltd,09/01/2023,PE146319,5.13,INITIATIVE ENV C4 WHT 100GSM SS PK250,Stationery
People and Places,Support Services,Bates Office Services Ltd,09/01/2023,PE146319,9.06,VERBATIM AA ALKALINE BATTERIES PK24,Stationery
People and Places,Support Services,Bates Office Services Ltd,09/01/2023,PE146319,0.62,INITIATIVE STICKY TAC 70G,Stationery
People and Places,Support Services,Bates Office Services Ltd,09/01/2023,PE146319,0.53,Q-CONNECT 32MM BLACK FOLDBACK CLIP PK10,Stationery
People and Places,Support Services,Bates Office Services Ltd,09/01/2023,PE146319,30.49,FELLOWES R-KIVE STORAGE BOX 01810,Stationery
People and Places,Support Services,Bates Office Services Ltd,04/01/2023,PE146318,2.27,Q-CONNECT A5 SPIRAL EXEC PAD 80LF RULED,Stationery
People and Places,Support Services,Bates Office Services Ltd,04/01/2023,PE146318,4.38,Q-CONNECT SPIRAL PAD EXEC A4 80SHT,Stationery
People and Places,Support Services,Bates Office Services Ltd,04/01/2023,PE146318,4.53,WB CLEAR TAPE 24X66,Stationery
People and Places,Support Services,Bates Office Services Ltd,04/01/2023,PE146318,4.77,CASIO MX-8B-WE DESKTOP CALCULATOR,Stationery
People and Places,Support Services,Bates Office Services Ltd,04/01/2023,PE146318,5.40,A4 CLEAR PUNCHED POCKETS PK100,Stationery
People and Places,Support Services,Bates Office Services Ltd,04/01/2023,PE146318,1.20,Q CONNECT PLAS TREASURY TAGS 76MM PK100,Stationery
People and Places,Support Services,Bates Office Services Ltd,04/01/2023,PE146318,6.14,INITIATIVE DOCUMENT WALLETS FC ORANGE,Stationery
People and Places,Support Services,Bates Office Services Ltd,04/01/2023,PE146318,32.76,ELBA SPRING PKT FILE FCP YLW,Stationery
People and Places,Support Services,Bates Office Services Ltd,04/01/2023,PE146318,3.22,Q CONNECT DISPLAY BOOK 10POCKET RED,Stationery
People and Places,Support Services,Bates Office Services Ltd,04/01/2023,PE146318,4.40,Q CONNECT DISPLAY BOOK 20POCKET BLACK,Stationery
People and Places,Support Services,Bates Office Services Ltd,04/01/2023,PE146318,4.18,Q CONNECT DISPLAY BOOK 40POCKET BLACK,Stationery
People and Places,Cultural and Related Services,Blackpool Council,18/01/2023,PE146661,1800.00,Visit Blackpool Guide 2023 - double page spread with partners,Advertising - General
People and Places,Central Services to the Public,Blackpool Council,26/01/2023,PE146758,1096.00,"Covid vaccination van Dec 22 03/12 Affinity, Fleetwood & 27/12 Morrisons, Cleveleys",Contain Outbreak Management Fund
People and Places,Central Services to the Public,Blackpool Council,26/01/2023,PE146758,1086.48,Adhoc vaccine guarantee charges,Contain Outbreak Management Fund
People and Places,Environmental Services,Blackpool Council,31/01/2023,PE146953,2125.77,Ref 2212001 ? Budgetary costs  Replace radio link @ Fleetwood between cam 13 & Copse Road Depot Parts Including  :- ? Radio Link (pair) ? Smart POE switch * 2 ? Cabling / Cat 5 Plugs / fixings etc. ? Labour inc Operatives & Cherry Picker (working hours),CCTV Running Costs
Resources,Support Services,Butler Rose Recuitment Ltd,18/01/2023,RS146583,1768.55,Interim Accountant Support - KR 7th November 2022 - 30th January 2023,Agency Staff
Resources,Support Services,Butler Rose Recuitment Ltd,04/01/2023,RS146286,1965.05,Interim Accountant Support - KR 7th November 2022 - 30th January 2023,Agency Staff
Resources,Support Services,Butler Rose Recuitment Ltd,23/01/2023,RS146731,1965.05,Interim Accountant Support - KR 7th November 2022 - 30th January 2023,Agency Staff
Resources,Support Services,Butler Rose Recuitment Ltd,27/01/2023,RS146915,1965.05,Interim Accountant Support - KR 7th November 2022 - 30th January 2023,Agency Staff
Resources,Support Services,Butler Rose Recuitment Ltd,09/01/2023,RS146357,1866.80,Interim Accountant Support - KR 7th November 2022 - 30th January 2023,Agency Staff
Resources,Support Services,C I E H,18/01/2023,RS146659,1250.00,Environmental Health Officer Advertising on EHN / CIEH,Advertising - Recruitment
People and Places,Planning and Development Servs,Capita Property and Infrastructure Ltd,30/01/2023,PE146932,4631.60,planning application support provided by Capita,Consultants Fees
Resources,Support Services,CCS MEDIA LTD,16/01/2023,RS146449,6797.70,HP-5Y4A4EA#ABU HP 450 G9 i5-1235U Notebook 39.6 cm (15.6``) Full HD Intel Core i5 8 GB DDR4-SDRAM 256 GB SSD Wi-Fi 6E (802.11ax) Windows 10 Pro Silver,Comp Hardware Purchases
Resources,Support Services,CCS MEDIA LTD,16/01/2023,RS146551,651.10,Hewlett Packard Enterprise-UK703E HP 3 year Next Business Day Response Onsite Notebook Hardware Support,Comp Hardware Purchases
Resources,Support Services,CCS MEDIA LTD,16/01/2023,RS146550,121.40,Targus-TAR300 Targus notebook case 39.6 cm (15.6``) Briefcase Black,Comp Hardware Purchases
People and Places,Support Services,Cheshire Turf Machinery LTD,16/01/2023,PE146556,-636.66,offsets PE142373 Husqvarna mower and adapter plate,Purchase of Tools or Equipment
People and Places,Parking Services,CHIPSIDE LTD,19/01/2023,PE146684,664.92,Provision of notice processing services per contract Dec 22,Private Contractors
People and Places,Parking Services,CHIPSIDE LTD,11/01/2023,PE146400,15.00,Provide 2 no 500mb SiMS for Wyre handheld units 1 April 2022 - 31 March 2023,Private Contractors
People and Places,Parking Services,CHIPSIDE LTD,11/01/2023,PE146391,43.60,Wyre Council parking - Bank Transaction Fees 1 April 2022 - 31 March 2023,Private Contractors
People and Places,Cultural and Related Services,Colourbanners.co.uk,16/01/2023,PE143784,40.00,Foamex Digital Print Direct to Board - Heritage Artwork  2 Boards at 70cm x 50cm size,Promotions - General
People and Places,Planning and Development Servs,Colourbanners.co.uk,11/01/2023,PE145530,60.00,Print for WBA,Event Hospitality
Resources,Cultural and Related Services,Colourbanners.co.uk,23/01/2023,RS146724,84.00,Christmas Festival Weekend - 2 x railing banner 0.8mx3m with eyeletsCost includes VAT,Advertising - General
People and Places,Planning and Development Servs,Colourbanners.co.uk,20/01/2023,PE146722,257.50,5 mm Foamex - (Digital print direct to board)60cm x 80cm - 7 Designs Artwork and Design Time plus print,Monitoring/Evaluation
People and Places,Cultural and Related Services,Colourbanners.co.uk,11/01/2023,PE145530,90.00,1 x mesh banner Marine Hall,Advertising - General
People and Places,Cultural and Related Services,Colourbanners.co.uk,11/01/2023,PE145530,129.00,Christmas festival Print,Advertising - General
People and Places,Cultural and Related Services,Colourbanners.co.uk,16/01/2023,RS144571,120.00,2 x Pull Ups Wyre Theatres,Advertising - General
People and Places,Cultural and Related Services,Colourbanners.co.uk,18/01/2023,PE146634,114.00,PVC BANNER 550g - **HEMMED** brass eyelets all round4300mm x 1550mm - TLT - Simon & Garfunkel,Advertising - General
People and Places,Cultural and Related Services,Colourbanners.co.uk,18/01/2023,PE146633,198.00,DIGITAL MESH BANNER - **HEMMED** eyelets allround 2000mm x 2900mm - ELVIS / Beatles,Advertising - General
People and Places,Environmental Services,Corona Energy Retail 4 Limited,24/01/2023,PE146755,-488.86,"1610004742413- Stanah Pumphouse 11,Thornton Cleveleys- Period  01/11/2022 (E) to 01/12/2022 (E)",Electricity
People and Places,Environmental Services,Corona Energy Retail 4 Limited,24/01/2023,PE146755,1046.91,"1610004347328- East Cemetry,Poulton Le Fylde- Period  01/12/2022 (E) to 01/01/2023 (E)",Electricity
People and Places,Cultural and Related Services,Corona Energy Retail 4 Limited,24/01/2023,PE146755,1360.10,"1610004773866- Lecture Hall,Thornton-Cleveleys- Period  01/12/2022 (E) to 01/01/2023 (E)",Electricity
People and Places,Cultural and Related Services,Corona Energy Retail 4 Limited,24/01/2023,PE146755,48.11,"1610004305434- Sports Pavilion,Cottam Hall,Poulton-Le-Fylde-  Period 01/12/2022 (E) to 01/01/2023 (E)",Electricity
People and Places,Cultural and Related Services,Corona Energy Retail 4 Limited,24/01/2023,PE146755,30.72,"1610004305443- Sports Pavilion,Cottam Hall,Poulton-Le-Fylde-  Period 01/12/2022 (E) to 01/01/2023 (E)",Electricity
People and Places,Cultural and Related Services,Corona Energy Retail 4 Limited,24/01/2023,PE146755,44.47,"1610004318841- Jean Stansfield Bowling Green,Poulton Le Fylde-  Period 01/12/2022 (E) to 01/01/2023 (E)",Electricity
People and Places,Central Services to the Public,Corona Energy Retail 4 Limited,24/01/2023,PE146755,2084.00,"1610004322012- WRVS,Teanlowe Day Centre,Poulton-Le-Fylde-  Period 01/12/2022 (R) to 01/01/2023 (R)",Electricity
People and Places,Cultural and Related Services,Corona Energy Retail 4 Limited,24/01/2023,PE146755,-79.15,"1610004775083- The  Windmill,Thornton Cleveleys- Period 01/11/2022 (E) to 01/12/2022 (E)",Electricity
People and Places,Cultural and Related Services,Corona Energy Retail 4 Limited,24/01/2023,PE146755,164.11,"1610004863632- Beach Bungalows,Fleetwood- Period 01/12/2022  (E) to 01/01/2023 (E)",Electricity
People and Places,Cultural and Related Services,Corona Energy Retail 4 Limited,24/01/2023,PE146755,46.30,"1610004724089- Pavilion,Thornton Cleveleys- Period 03/12/2022  (R) to 01/01/2023 (R)",Electricity
People and Places,Cultural and Related Services,Corona Energy Retail 4 Limited,24/01/2023,PE146755,-28.60,"1610004932418- King Georges Field,Fleetwood Road- Period  01/11/2022 (E) to 01/12/2022 (E)",Electricity
People and Places,Cultural and Related Services,Corona Energy Retail 4 Limited,24/01/2023,PE146755,-345.86,"1610004867479- The Mount Pavilion,Fleetwood- Period 01/11/2022  (E) to 01/12/2022 (E)",Electricity
People and Places,Cultural and Related Services,Corona Energy Retail 4 Limited,24/01/2023,PE146755,782.94,"1650000008330- The Mount Pavilion,Fleetwood- Period 01/12/2022  (R) to 01/01/2023 (R)",Electricity
People and Places,Environmental Services,Corona Energy Retail 4 Limited,24/01/2023,PE146755,22.62,"1610004421200- Pumping Station 2,Thornton Cleveleys- Period  01/12/2022 (E) to 01/01/2023 (E)",Electricity
People and Places,Environmental Services,Corona Energy Retail 4 Limited,24/01/2023,PE146755,24.42,"1610004421042- Pumping Station;1,Thornton Cleveleys- Period  01/12/2022 (E) to 01/01/2023 (E)",Electricity
People and Places,Cultural and Related Services,Corona Energy Retail 4 Limited,24/01/2023,PE146755,183.90,"1610004742431- Visitors Centre,River Road,Thornton Cleveleys-  Period 01/12/2022 (E) to 01/01/2023 (E)",Electricity
People and Places,Cultural and Related Services,Corona Energy Retail 4 Limited,24/01/2023,PE146755,8.14,"1610004742404- River Road,Thornton Cleveleys- Period  01/12/2022 (R) to 01/01/2023 (R)",Electricity
People and Places,Cultural and Related Services,Corona Energy Retail 4 Limited,24/01/2023,PE146755,1360.72,"1610004742399- River Road,Thornton Cleveleys- Period  01/12/2022 (R) to 01/01/2023 (R)",Electricity
People and Places,Environmental Services,Corona Energy Retail 4 Limited,24/01/2023,PE146755,573.20,"1610004665168- WC,Bus Station,Thornton-Cleveleys- Period  01/12/2022 (R) to 01/01/2023 (R)",Electricity
People and Places,Environmental Services,Corona Energy Retail 4 Limited,24/01/2023,PE146755,546.41,"1610004313728- WC,Teanlowe Centre,Poulton-Le-Fylde- Period  01/12/2022 (E) to 01/01/2023 (E)",Electricity
People and Places,Environmental Services,Corona Energy Retail 4 Limited,24/01/2023,PE146755,78.03,"1610023232505- WC,Car Park,Garstang- Period 01/12/2022 (R) to  01/01/2023 (R)",Electricity
People and Places,Environmental Services,COWLEY FIRE,26/01/2023,PE146754,122.94,Sea Defence Workshop: service fire equipment,Planned Building Maintenance
People and Places,Cultural and Related Services,COWLEY FIRE,16/01/2023,PE145556,33.19,"Tourist Info, Unit 1 Cherstaric Sq: Service fire equipment",Planned Building Maintenance
People and Places,Support Services,COWLEY FIRE,16/01/2023,PE146516,1157.29,Civic Centre: service fire equipment,Planned Building Maintenance
Resources,Housing General Fund,Creative Support LTD,09/01/2023,RS146358,7025.50,Contract fees - 01/10/22 - 31/12/22,Homelessness Tenancy Support
Resources,Central Services to the Public,Critiqom LTD,18/01/2023,RS146578,1161.76,Daily Bills,Postage
Resources,Central Services to the Public,Critiqom LTD,18/01/2023,RS146577,281.37,Daily Bills,Postage
Resources,Support Services,Critiqom LTD,18/01/2023,RS146577,298.99,IQ post - Off Serv  Admin,Postage
Resources,Support Services,Critiqom LTD,18/01/2023,RS146577,7.75,IQ post - Off Serv  Admin - Energy Surcharge,Postage
Resources,Support Services,Critiqom LTD,18/01/2023,RS146577,7.63,IQ post - Recovery,Postage
Resources,Support Services,Critiqom LTD,18/01/2023,RS146577,0.20,IQ post - Recovery -  Energy Surcharge,Postage
Resources,Housing General Fund,Critiqom LTD,18/01/2023,RS146577,0.61,Benefit Notifications  - Energy Surcharge,Postage
Resources,Support Services,Critiqom LTD,18/01/2023,RS146577,359.53,IQ post - CC,Postage
Resources,Support Services,Critiqom LTD,18/01/2023,RS146577,9.32,IQ post - CC - Energy  Surcharge,Postage
Resources,Support Services,Critiqom LTD,18/01/2023,RS146577,226.53,IQ Post - Planning,Postage
Resources,Support Services,Critiqom LTD,18/01/2023,RS146577,5.88,IQ Post - Planning -  Energy Surcharge,Postage
Resources,Central Services to the Public,Critiqom LTD,18/01/2023,RS146577,7.30,Daily Bills - Energy  Surcharge,Postage
Resources,Central Services to the Public,Critiqom LTD,18/01/2023,RS146577,117.58,IQ post - Electoral,Postage
Resources,Central Services to the Public,Critiqom LTD,18/01/2023,RS146577,3.05,IQ post - Electoral -  Energy Surcharge,Postage
Resources,Central Services to the Public,Critiqom LTD,30/01/2023,RS146934,2400.00,Annual Billing Stationery 2023,Stationery
Resources,Housing General Fund,Critiqom LTD,18/01/2023,RS146578,100.84,Benefit Notifications,Postage
Resources,Housing General Fund,Critiqom LTD,18/01/2023,RS146577,23.51,Benefit Notifications,Postage
Resources,Central Services to the Public,Critiqom LTD,18/01/2023,RS146577,209.19,HSF3 Huggg DBR  Letters,Household Support Fund
Resources,Support Services,Crown Computing LTD,10/01/2023,RS146383,975.00,Crown monthly fee April 22 to March 23,Software Maintenance
Resources,Support Services,Crown Computing LTD,31/01/2023,RS146967,975.00,Crown monthly fee April 22 to March 23,Software Maintenance
Resources,Cultural and Related Services,Daisy Communications LTD,25/01/2023,RS146539,21.42,Monthly Phone Charges,Telephone - Buildings and Offices
Resources,Cultural and Related Services,Daisy Communications LTD,25/01/2023,RS146539,10.71,Monthly Phone Charges,Telephone - Buildings and Offices
Resources,Support Services,Daisy Communications LTD,25/01/2023,RS146539,33.30,Monthly Phone Charges,Telephone - Buildings and Offices
Resources,Environmental Services,Daisy Communications LTD,25/01/2023,RS146539,32.13,Monthly Phone Charges,Telephone - Buildings and Offices
Resources,Support Services,Daisy Communications LTD,25/01/2023,RS146539,10.71,Monthly Phone Charges,Telephone - Buildings and Offices
Resources,Support Services,Daisy Communications LTD,25/01/2023,RS146539,1678.83,Monthly Phone Charges,Telephone - Buildings and Offices
Resources,Cultural and Related Services,Daisy Communications LTD,25/01/2023,RS146539,66.60,Monthly Phone Charges,Telephone - Buildings and Offices
Resources,Cultural and Related Services,Daisy Communications LTD,25/01/2023,RS146539,11.04,Monthly Phone Charges,Telephone - Buildings and Offices
Resources,Support Services,Daisy Communications LTD,25/01/2023,RS146539,10.71,Monthly Phone Charges,Alarm Systems and Security - Annual
Resources,Cultural and Related Services,Daisy Communications LTD,25/01/2023,RS146539,10.71,Monthly Phone Charges,Telephone - Buildings and Offices
Resources,Cultural and Related Services,Daisy Communications LTD,25/01/2023,RS146539,10.71,Monthly Phone Charges,Telephone - Buildings and Offices
Resources,Cultural and Related Services,Daisy Communications LTD,25/01/2023,RS146539,34.89,Monthly Phone Charges,Telephone - Buildings and Offices
Resources,Environmental Services,Daisy Communications LTD,25/01/2023,RS146539,10.71,Monthly Phone Charges,Telephone - Buildings and Offices
Resources,Planning and Development Servs,Daisy Communications LTD,25/01/2023,RS146539,0.52,Monthly Phone Charges,Telephone - Buildings and Offices
Resources,Support Services,Daisy Communications LTD,25/01/2023,RS146539,16.95,Monthly Phone Charges,Internet and Telephone Charges
Resources,Planning and Development Servs,Daisy Communications LTD,25/01/2023,RS146539,42.92,Monthly Phone Charges,Advertising - General
Resources,Support Services,Daisy Communications LTD,25/01/2023,RS146539,2.20,Monthly Phone Charges,Telephone - Buildings and Offices
Resources,Cultural and Related Services,Daisy Communications LTD,25/01/2023,RS146539,60.96,Monthly Phone Charges,Telephone - Buildings and Offices
Resources,Planning and Development Servs,Daisy Communications LTD,25/01/2023,RS146539,2.20,Monthly Phone Charges,Telephone - Buildings and Offices
Resources,Support Services,Daisy Communications LTD,25/01/2023,RS146539,21.42,Monthly Phone Charges,Internet and Telephone Charges
Resources,Support Services,Daisy Communications LTD,25/01/2023,RS146539,44.27,Monthly Phone Charges,Internet and Telephone Charges
Resources,Cultural and Related Services,Daisy Communications LTD,25/01/2023,RS146539,10.71,Monthly Phone Charges,Internet and Telephone Charges
Resources,Planning and Development Servs,Daisy Communications LTD,25/01/2023,RS146539,10.71,Monthly Phone Charges,Telephone - Buildings and Offices
Resources,Cultural and Related Services,Daisy Communications LTD,25/01/2023,RS146539,27.65,Monthly Phone Charges,Internet and Telephone Charges
Resources,Corporate and Democratic Core,Daisy Communications LTD,25/01/2023,RS146539,10.71,Monthly Phone Charges,Internet and Telephone Charges
People and Places,Environmental Services,DANFO (UK) LTD,31/01/2023,PE146966,21763.10,Public Conveniences - Maintenance and Cleaning 2022/23,Other Establishments
Resources,Housing General Fund,DJS Events Hire - Maydene Hotel,09/01/2023,RS146354,690.00,REDACT,Rough Sleeper Project/NSNO
People and Places,Support Services,Dr Tree Surgeons,27/01/2023,PE146926,670.00,Quotation 640 Brock quote - Part 2T7 Ash &#8208; Fell 220.00 T8 Ash &#8208;Fell 250.00 T12 Ash &#8208; Fell 200.00 Total Net Amount: 670.00VAT @ 20%: 134.00Quote Total: 804.00Please note - access to car park will need to be closed f,Special Maintenance - Trees
People and Places,Cultural and Related Services,Dr Tree Surgeons,27/01/2023,PE146927,1240.00,"Tree Works - Brock Picnic Area- Fell Ash,- Fell Aspen- Remove Deadwood - Ash- Crown raise Chestnut over Car Park",External Contractor
People and Places,Support Services,Dr Tree Surgeons,03/01/2023,PE146264,580.00,"Quote Number: 658Quote Ref: 77 Sta on Road1 Vicarage Park behind 77 Sta on rd &#8208; x1 whitebeam with damagedstem and damaged gra  union&#8208;remove tree, x1 oak tree &#8208; removedeadwood 380.00 1 Also sensively reduce one Oak tree 200.",Special Maintenance - Trees
People and Places,Support Services,Dr Tree Surgeons,03/01/2023,PE146283,450.00,Quote Number: 663Side of 23 Duckworth Drive&#8208; Open space on Parklands ? X2 Ash treesencroaching towards dwelling at 23 Duckworth Drive.  No signs ofADB.  lateral crown reduc on and remove any deadwood noted.450.00 Total Net Amount: 4,Special Maintenance - Trees
People and Places,Planning and Development Servs,Drax Energy Solutions Limited,17/01/2023,PE146521,141.59,"3200000534746 Unit 6, Dock Ave, Fleetwood, FY7 6PS 01/12/22 to 31/12/22 Act",Electricity
People and Places,Planning and Development Servs,Drax Energy Solutions Limited,17/01/2023,PE146520,137.63,"3200000534737 Unit 5 Dock Ave, Fleetwood, FY7 6PS 01/12/22 to 31/12/22 Act",Electricity
People and Places,Planning and Development Servs,Drax Energy Solutions Limited,17/01/2023,PE146519,142.03,"3200000534728 Unit 4, Dock Ave, Fleetwood, FY7 6PS 01/12/22 to 31/12/22 Act",Electricity
People and Places,Planning and Development Servs,Drax Energy Solutions Limited,17/01/2023,PE146525,137.63,"320000534782 Unit 9 Dock Ave, Fleetwood, FY7 6PS 01/12/22 to 31/12/22 Act",Electricity
People and Places,Planning and Development Servs,Drax Energy Solutions Limited,17/01/2023,PE146524,148.18,"3200000534773 Unit 8, Dock Ave, Fleetwood, FY7 6PS 01/12/22 to 31/12/22 Act",Electricity
People and Places,Planning and Development Servs,Drax Energy Solutions Limited,17/01/2023,PE146523,154.79,"3200000534764 Unit 7B Dock Ave, Fleetwood, FY7 6PS 01/12/22 to 31/12/22 Act",Electricity
People and Places,Planning and Development Servs,Drax Energy Solutions Limited,17/01/2023,PE146522,140.71,"3200000534755 Unit 7A, Dock Ave, Fleetwood, FY7 6PS 01/12/22 to 31/12/22 Act",Electricity
People and Places,Planning and Development Servs,Drax Energy Solutions Limited,17/01/2023,PE146527,127.52,"3200000534807 LL Supply c/o ABP Port Office, Dock Ave, Fleetwood, FY7 6PS 01/12/22 to 31/12/22 Act",Electricity
People and Places,Planning and Development Servs,Drax Energy Solutions Limited,17/01/2023,PE146526,135.87,"320000534791 Unit 10 Dock Ave, Fleetwood, FY7 6PS 01/12/22 to 31/12/22 Act",Electricity
People and Places,Planning and Development Servs,EAS Electrical Mechanical,09/01/2023,PE146066,44.66,Repair for grab claw game.  Stall holder paid cash direct to EA Electrical so credit note to cancel this invoice,Maintenance of Tools or Equipment
People and Places,Cultural and Related Services,EAS Electrical Mechanical,18/01/2023,PE146654,72.00,"Marsh Mill: tested no power at sails, tested fuses ok, found a stop start switch hidden in boxing in, traced wiring back on contactor coil to a limit switch on the brakes which had being knocked into the wrong position, repositioned switch.",Responsive Building Maintenance
People and Places,Cultural and Related Services,EAS Electrical Mechanical,17/01/2023,PE146618,180.00,"KiteClub, Fleetwood: review electrics after recent leak and complete EICP of associated circuits.  All found to be OK, power reinstated",Responsive Building Maintenance
People and Places,Cultural and Related Services,EAS Electrical Mechanical,25/01/2023,PE146873,170.41,Investigaste lighting and replace floodlights at lower lighthouse,Responsive Building Maintenance
People and Places,Cultural and Related Services,EAS Electrical Mechanical,17/01/2023,PE146620,334.50,Thornton Little Theatre: rectify 3 x C3`s,Responsive Building Maintenance
People and Places,Cultural and Related Services,EAS Electrical Mechanical,25/01/2023,PE146767,133.74,Converted fittings to led in meter room,Responsive Building Maintenance
People and Places,Cultural and Related Services,EAS Electrical Mechanical,17/01/2023,PE146619,459.27,"Thronton Little Theatre: reinstall light in kitchen bar area, replace light in chair store and sound booth, fault find on water boiler, details sent to Steve to order replacement - isolcate heater and drain, replace faulty element and test",Responsive Building Maintenance
People and Places,Support Services,EAS Electrical Mechanical,19/01/2023,PE146677,3045.97,Civic Centre: Boiler repairs - replace 4 PCB and 4 on and off switches in accordance with quotation,Responsive Building Maintenance
People and Places,Support Services,EAS Electrical Mechanical,18/01/2023,PE146656,875.88,Civic Centre: repipe damaged pipework in various areas of annexe and test following recent frost,Responsive Building Maintenance
People and Places,Support Services,EAS Electrical Mechanical,18/01/2023,PE146655,122.80,"Civic Centre: install TRV to radiator in room 142, repair TRV in room 143",Responsive Building Maintenance
People and Places,Support Services,EAS Electrical Mechanical,25/01/2023,PE146874,48.00,Investigate fault on rad Civic Centre,Responsive Building Maintenance
People and Places,Cultural and Related Services,EAS Electrical Mechanical,25/01/2023,PE146768,129.49,Replaced light as integral microwave sensor was faulty,Responsive Building Maintenance
People and Places,Planning and Development Servs,EAS Electrical Mechanical,18/01/2023,PE146653,120.17,Copse Rd Depot: installed 1 x double socket in canteen behind tv fed via exisiting canteen ring main,Responsive Building Maintenance
People and Places,Planning and Development Servs,EAS Electrical Mechanical,25/01/2023,PE146872,62.98,Replace faulty light within health store at Fleetwood Market,Responsive Building Maintenance
People and Places,Planning and Development Servs,EAS Electrical Mechanical,31/01/2023,PE146958,1487.18,Fleetwood MArket: Swapped s x single pvc sockets to Sw fused spur in cafe on the double fryer due to damage to sockets.  8 x 1200x600 lay in LED fittings in annex replaced. Invesigate issue with CAB lighting and repair,Responsive Building Maintenance
People and Places,Planning and Development Servs,EAS Electrical Mechanical,31/01/2023,PE146962,176.62,"Fleetwood Market: isolate leak and take details of tap - order new. Return and replace tap, test on completion",Responsive Building Maintenance
People and Places,Support Services,EAS Electrical Mechanical,25/01/2023,PE146766,60.89,Replace tap revivers on kitchen sink in room 118,Responsive Building Maintenance
People and Places,Support Services,EAS Electrical Mechanical,25/01/2023,PE146871,1381.16,Replacement boiler PCBs at Cici Centre,Responsive Building Maintenance
People and Places,Environmental Services,EAS Electrical Mechanical,25/01/2023,PE146875,48.00,Checked all pipework at Morrland Road Cemetery,Special Works
Resources,Support Services,Ebuyer (UK) Ltd,17/01/2023,RS146617,1626.40,Iiyama 22`` Prolite Full HD Monitor.QuickFind: 885077Mfr part code: XU2294HSU-B1,Comp Hardware Purchases
Resources,Support Services,Ebuyer (UK) Ltd,17/01/2023,RS146617,30.00,Delivery,Postage
People and Places,Support Services,EK Motors Factors LTD,18/01/2023,PE146612,73.60,Parts,Materials and Consumables
People and Places,Support Services,EK Motors Factors LTD,18/01/2023,PE146611,5.80,Parts,Materials and Consumables
People and Places,Support Services,EK Motors Factors LTD,18/01/2023,PE146610,8.50,Parts,Materials and Consumables
People and Places,Environmental Services,EK Motors Factors LTD,18/01/2023,PE146594,34.14,Parts,Daywork Materials (Excl.Tyres)
People and Places,Environmental Services,EK Motors Factors LTD,18/01/2023,PE146593,15.99,Parts,Daywork Materials (Excl.Tyres)
People and Places,Support Services,EK Motors Factors LTD,18/01/2023,PE146609,24.24,Parts,Materials and Consumables
People and Places,Support Services,EK Motors Factors LTD,18/01/2023,PE146608,150.95,Parts,Materials and Consumables
People and Places,Support Services,EK Motors Factors LTD,18/01/2023,PE146607,47.93,Parts,Materials and Consumables
People and Places,Environmental Services,EK Motors Factors LTD,18/01/2023,PE146596,15.99,Parts,Daywork Materials (Excl.Tyres)
People and Places,Environmental Services,EK Motors Factors LTD,18/01/2023,PE146595,149.90,Parts,Daywork Materials (Excl.Tyres)
People and Places,Environmental Services,EK Motors Factors LTD,18/01/2023,PE146601,13.32,Parts,Daywork Materials (Excl.Tyres)
People and Places,Environmental Services,EK Motors Factors LTD,18/01/2023,PE146600,43.01,Parts,Daywork Materials (Excl.Tyres)
People and Places,Environmental Services,EK Motors Factors LTD,18/01/2023,PE146599,15.99,Parts,Daywork Materials (Excl.Tyres)
People and Places,Environmental Services,EK Motors Factors LTD,18/01/2023,PE146598,21.00,Parts,Daywork Materials (Excl.Tyres)
People and Places,Environmental Services,EK Motors Factors LTD,18/01/2023,PE146597,13.99,Parts,Daywork Materials (Excl.Tyres)
People and Places,Support Services,EK Motors Factors LTD,18/01/2023,PE146604,42.41,Parts,Daywork Materials (Excl.Tyres)
People and Places,Support Services,EK Motors Factors LTD,18/01/2023,PE146606,16.96,Parts,Materials and Consumables
People and Places,Support Services,EK Motors Factors LTD,18/01/2023,PE146605,19.98,Parts,Materials and Consumables
People and Places,Environmental Services,EK Motors Factors LTD,18/01/2023,PE146603,5.91,Parts,Daywork Materials (Excl.Tyres)
People and Places,Environmental Services,EK Motors Factors LTD,18/01/2023,PE146602,36.00,Parts,Daywork Materials (Excl.Tyres)
People and Places,Environmental Services,EK Motors Factors LTD,18/01/2023,PE146592,21.64,Parts,Daywork Materials (Excl.Tyres)
People and Places,Environmental Services,Engie Power Limited,13/01/2023,PE146477,425.12,"1610004845304(01/11/22 to 30/11/22)Fleetwood Corp Cemetery, Beach Rd, Fleetwood, FY7 8PH (A/A)",Electricity
People and Places,Environmental Services,Engie Power Limited,25/01/2023,PE146837,466.11,"1610004845304(01/12/22 to 31/12/22)Fleetwood Corp Cemetery, Beach Rd, Fleetwood, FY7 8PH (A/A)",Electricity
People and Places,Cultural and Related Services,Engie Power Limited,25/01/2023,PE146832,544.25,"1610004863623(01/12/22 to 31/12/22)Pitch & Putt Kiosk, Carr Rd, The Esplanade, Fleetwood, FY7 6QE (E/E)",Electricity
People and Places,Cultural and Related Services,Engie Power Limited,25/01/2023,PE146831,419.04,"1610004863605(01/12/22 to 31/12/22)Central Toilets Kiosk, The Esplanade, Fleetwood, FY7 7BE (A/A)",Electricity
People and Places,Cultural and Related Services,Engie Power Limited,25/01/2023,PE146830,415.03,"1610004846558(01/12/22 to 31/12/22)Pump Station, The Esplanade, Fleetwood, FY7 6HF (A/A)",Electricity
People and Places,Cultural and Related Services,Engie Power Limited,13/01/2023,PE146473,613.25,"1610004846558(01/11/22 to 30/11/22)Pump Station, The Esplanade, Fleetwood, FY7 6HF (A/A)",Electricity
People and Places,Cultural and Related Services,Engie Power Limited,25/01/2023,PE146825,264.61,"1640000118533(01/12/22 to 31/12/22)Feeder Pillar, Vicarage Rd, Poulton le Fylde, FY6 7BE (A/A)",Electricity
People and Places,Cultural and Related Services,Engie Power Limited,25/01/2023,PE146851,102.32,"1640000004924(01/12/22 to 31/12/22)Feeder Pillar, Hawthorne Park, Hawthorne Rd, Thornton Cleveleys, FY5 5DH (A/A)",Electricity
People and Places,Cultural and Related Services,Engie Power Limited,25/01/2023,PE146838,121.76,"1610004775074(01/12/22 to 31/12/22)The Windmill, Fleetwood Rd North, Thornton Cleveleys, FY5 4BP (E/A)",Electricity
People and Places,Cultural and Related Services,Engie Power Limited,13/01/2023,PE146494,108.00,"1610004775074(01/11/22 to 30/11/22)The Windmill, Fleetwood Rd North, Thornton Cleveleys, FY5 4BP (A/E)",Electricity
People and Places,Cultural and Related Services,Engie Power Limited,13/01/2023,PE146460,176.85,"1610004867488(01/11/22 to 30/11/22)Mount Pavilion, Mount Rd, Fleetwood, FY7 6EZ (E/E)",Electricity
People and Places,Cultural and Related Services,Engie Power Limited,13/01/2023,PE146490,176.85,"1610004867441(01/11/22 to 30/11/22)Mount Hotel, Mount Rd, Fleetwood, FY7 6RA (E/E)",Electricity
People and Places,Cultural and Related Services,Engie Power Limited,25/01/2023,PE146834,183.53,"1610004846390(01/12/22 to 31/12/22)Pump House, Model Yacht Pond, Laidleys Walk, Fleetwood, FY7 7JL (A/A)",Electricity
People and Places,Cultural and Related Services,Engie Power Limited,13/01/2023,PE146493,262.72,"1610004846390(01/11/22 to 30/11/22)Pump House, Model Yacht Pond, Laidleys Walk, Fleetwood, FY7 7JL (A/A)",Electricity
People and Places,Cultural and Related Services,Engie Power Limited,13/01/2023,PE146480,220.22,"1610004846520(01/11/22 to 30/11/22)Boating Lake, Laidleys Walk, Fleetwood, FY7 7HU (E/E)",Electricity
People and Places,Cultural and Related Services,Engie Power Limited,13/01/2023,PE146474,266.85,"1610004897385(01/11/22 to 30/11/22)Tennis Pavillion, Memorial Park, Fleetwood, FY7 7AE (E/E)",Electricity
People and Places,Cultural and Related Services,Engie Power Limited,13/01/2023,PE146496,486.01,"1610004897400(01/11/22 to 30/11/22)Ladies Bowls Pavilion, Memorial Park, Fleetwood, FY7 7AE (E/E)",Electricity
People and Places,Cultural and Related Services,Engie Power Limited,13/01/2023,PE146459,167.79,"1610004897394(01/11/22 to 30/11/22)Bowls House, Memorial Park, Fleetwood, FY7 7AE (A/A)",Electricity
People and Places,Cultural and Related Services,Engie Power Limited,13/01/2023,PE146484,98.82,"1640000004924(01/11/22 to 30/11/22)Feeder Pillar, Hawthorne Park, Hawthorne Rd, Thornton Cleveleys, FY5 5DH (A/A)",Electricity
People and Places,Cultural and Related Services,Engie Power Limited,13/01/2023,PE146470,255.78,"1640000118533(01/11/22 to 30/11/22)Feeder Pillar, Vicarage Rd, Poulton le Fylde, FY6 7BE (A/A)",Electricity
People and Places,Cultural and Related Services,Engie Power Limited,25/01/2023,PE146847,87.75,"1610004863776(01/12/22 to 31/12/22)Tourist Information Office, The Esplanade, Fleetwood, FY7 6DL (A/A)",Electricity
People and Places,Cultural and Related Services,Engie Power Limited,13/01/2023,PE146465,485.97,"1610004863623(01/11/22 to 30/11/22)Pitch & Putt Kiosk, Carr Rd, The Esplanade, Fleetwood, FY7 6QE (E/E)",Electricity
People and Places,Cultural and Related Services,Engie Power Limited,16/01/2023,PE146544,91.18,"1610004932427 King Georges Field, Broadwater, Fleetwood, FY7 8BD 02/10/22 to 31/10/22 Est",Electricity
People and Places,Cultural and Related Services,Engie Power Limited,16/01/2023,PE146541,98.21,"1610004932427 King Georges Field, Broadwater, Fleetwood, FY7 8BD 01/11/22 to 30/11/22 Est",Electricity
People and Places,Environmental Services,Engie Power Limited,25/01/2023,PE146836,915.50,"1610004828771(01/12/22 to 31/12/22)Council Depot, Chatsworth Day Centre, Chatsworth Ave, Fleetwood, FY7 8AP (E/E)",Electricity
People and Places,Planning and Development Servs,Engie Power Limited,25/01/2023,PE146829,81.95,"1640000947215(01/12/22 to 31/12/22)Landlord Supply, Fleetwood Market, Adelaide St, Fleetwood, FY7 6AB (A/A)",Electricity
People and Places,Planning and Development Servs,Engie Power Limited,25/01/2023,PE146828,70.63,"1640000947206(01/12/22 to 31/12/22)Kiosk 8, Fleetwood Market, Adelaide St, Fleetwood, FY7 6AB (A/A)",Electricity
People and Places,Planning and Development Servs,Engie Power Limited,25/01/2023,PE146827,212.72,"1640000947190(01/12/22 to 31/12/22)Kiosk 7, Fleetwood Market, Adelaide St, Fleetwood, FY7 6AB (A/A)",Electricity
People and Places,Planning and Development Servs,Engie Power Limited,25/01/2023,PE146820,81.21,"1640000947181(01/12/22 to 31/12/22)Kiosk 6, Fleetwood Market, Adelaide St, Fleetwood, FY7 6AB (A/A)",Electricity
People and Places,Planning and Development Servs,Engie Power Limited,25/01/2023,PE146819,66.80,"1640000947172(01/12/22 to 31/12/22)Kiosk 5, Fleetwood Market, Adelaide St, Fleetwood, FY7 6AB (A/A)",Electricity
People and Places,Planning and Development Servs,Engie Power Limited,25/01/2023,PE146824,73.82,"1640000947145(01/12/22 to 31/12/22)Kiosk 2, Fleetwood Market, Adelaie St, Fleetwood, FY7 6AB (A/A)",Electricity
People and Places,Planning and Development Servs,Engie Power Limited,25/01/2023,PE146823,56.07,"1640000947136(01/12/22 to 31/12/22)Kiosk 1, Fleetwood Market, Adelaide St, Fleetwood, FY7 6AB (A/A)",Electricity
People and Places,Planning and Development Servs,Engie Power Limited,25/01/2023,PE146818,109.70,"1640000947163(01/12/22 to 31/12/22)Kiosk 4, Fleetwood Market, Adelaide St, Fleetwood, FY7 6AB (A/A)",Electricity
People and Places,Planning and Development Servs,Engie Power Limited,25/01/2023,PE146817,96.25,"1640000947154(01/12/22 to 31/12/22)Kiosk 3, Fleetwood Market, Adelaide St, Fleetwood, FY7 6AB (A/E)",Electricity
People and Places,Planning and Development Servs,Engie Power Limited,13/01/2023,PE146491,54.34,"1640000947154(01/11/22 to 30/11/22)Kiosk 3, Fleetwood Market, Adelaide St, Fleetwood, FY7 6AB (A/A)",Electricity
People and Places,Planning and Development Servs,Engie Power Limited,13/01/2023,PE146489,70.06,"1640000947172(01/11/22 to 30/11/22)Kiosk 5, Fleetwood Market, Adelaide St, Fleetwood, FY7 6AB (A/A)",Electricity
People and Places,Planning and Development Servs,Engie Power Limited,13/01/2023,PE146485,66.28,"1640000947215(01/11/22 to 30/11/22)Landlord Supply, Fleetwood Market, Adelaide St, Fleetwood, FY7 6AB (A/A)",Electricity
People and Places,Planning and Development Servs,Engie Power Limited,13/01/2023,PE146472,128.75,"1640000947163(01/11/22 to 30/11/22)Kiosk 4, Fleetwood Market, Adelaide St, Fleetwood, FY7 6AB (A/A)",Electricity
People and Places,Planning and Development Servs,Engie Power Limited,13/01/2023,PE146479,72.39,"1640000947206(01/11/22 to 30/11/22)Kiosk 8, Fleetwood Market, Adelaide St, Fleetwood, FY7 6AB (A/A)",Electricity
People and Places,Planning and Development Servs,Engie Power Limited,13/01/2023,PE146476,70.41,"1640000947181(01/11/22 to 30/11/22)Kiosk 6, Fleetwood Market, Adelaide St, Fleetwood, FY7 6AB (A/A)",Electricity
People and Places,Planning and Development Servs,Engie Power Limited,13/01/2023,PE146462,110.13,"1640000947145(01/11/22 to 30/11/22)Kiosk 2, Fleetwood Market, Adelaie St, Fleetwood, FY7 6AB (A/A)",Electricity
People and Places,Planning and Development Servs,Engie Power Limited,13/01/2023,PE146461,53.72,"1640000947136(01/11/22 to 30/11/22)Kiosk 1, Fleetwood Market, Adelaide St, Fleetwood, FY7 6AB (A/A)",Electricity
People and Places,Planning and Development Servs,Engie Power Limited,13/01/2023,PE146463,235.10,"1640000947190(01/11/22 to 30/11/22)Kiosk 7, Fleetwood Market, Adelaide St, Fleetwood, FY7 6AB (A/A)",Electricity
People and Places,Cultural and Related Services,Engie Power Limited,25/01/2023,PE146843,544.21,"1610004897400(01/12/22 to 31/12/22)Ladies Bowls Pavilion, Memorial Park, Fleetwood, FY7 7AE (E/E)",Electricity
People and Places,Cultural and Related Services,Engie Power Limited,25/01/2023,PE146842,197.40,"1610004897394(01/12/22 to 31/12/22)Bowls House, Memorial Park, Fleetwood, FY7 7AE (A/A)",Electricity
People and Places,Cultural and Related Services,Engie Power Limited,25/01/2023,PE146846,303.73,"1610004897385(01/12/22 to 31/12/22)Tennis Pavillion, Memorial Park, Fleetwood, FY7 7AE (E/E)",Electricity
People and Places,Cultural and Related Services,Engie Power Limited,25/01/2023,PE146848,455.41,"1610004867432(01/12/22 to 31/12/22)Mount Hotel, Mount Rd, Fleetwood, FY7 6RA (E/E)",Electricity
People and Places,Cultural and Related Services,Engie Power Limited,25/01/2023,PE146849,203.65,"1610004867441(01/12/22 to 31/12/22)Mount Hotel, Mount Rd, Fleetwood, FY7 6RA (E/E)",Electricity
People and Places,Cultural and Related Services,Engie Power Limited,25/01/2023,PE146844,203.65,"1610004867488(01/12/22 to 31/12/22)Mount Pavilion, Mount Rd, Fleetwood, FY7 6EZ (E/E)",Electricity
People and Places,Cultural and Related Services,Engie Power Limited,13/01/2023,PE146469,407.70,"1610004867432(01/11/22 to 30/11/22)Mount Hotel, Mount Rd, Fleetwood, FY7 6RA (E/E)",Electricity
People and Places,Cultural and Related Services,Engie Power Limited,13/01/2023,PE146475,486.40,"1610004890636(01/11/22 to 30/11/22)Fishermans Walk, Lord St, Fleetwood, FY7 6DU (E/E)",Electricity
People and Places,Cultural and Related Services,Engie Power Limited,25/01/2023,PE146845,544.71,"1610004890636(01/12/22 to 31/12/22)Fishermans Walk, Lord St, Fleetwood, FY7 6DU (E/E)",Electricity
People and Places,Environmental Services,Engie Power Limited,25/01/2023,PE146853,245.96,"1630000584632(01/12/22 to 31/12/22)PC, rear of Tesco, Rough Lea Rd, Thornton Cleveleys, FY5 1BW (E/E)",Gas
People and Places,Environmental Services,Engie Power Limited,16/01/2023,PE146540,132.02,"1630000819048 PC Cherestanc Square, Garstang, PR3 1EF 02/10/22 to 31/10/22 Est",Electricity
People and Places,Environmental Services,Engie Power Limited,25/01/2023,PE146835,247.94,"1610004846520(01/12/22 to 31/12/22)Boating Lake, Laidleys Walk, Fleetwood, FY7 7HU (E/E)",Electricity
People and Places,Environmental Services,Engie Power Limited,25/01/2023,PE146833,151.71,"1610004845322(01/12/22 to 31/12/22)PC, Beach Rd, Fleetwood, FY7 8PH (E/E)",Electricity
People and Places,Environmental Services,Engie Power Limited,25/01/2023,PE146840,253.80,"1610023195261(01/12/22 to 31/12/22)PC, Smallwood Hey, Pilling, Preston, PR3 6HJ (E/E)",Electricity
People and Places,Environmental Services,Engie Power Limited,25/01/2023,PE146839,222.55,"1610013371994(01/12/22 to 31/12/22)PC, The Weind, Great Eccleston, PR3 0ZU (E/E)",Electricity
People and Places,Environmental Services,Engie Power Limited,25/01/2023,PE146841,328.56,"1610023251891(01/12/22 to 31/12/22)PC, Gubberford Lane, Scorton, PR3 1BL (E/E)",Electricity
People and Places,Environmental Services,Engie Power Limited,25/01/2023,PE146852,109.33,"1620001343345(01/12/22 to 31/12/22)PC, Thornton Centre, Victoria Rd East, FY5 5DZ (A/A)",Electricity
People and Places,Environmental Services,Engie Power Limited,25/01/2023,PE146854,303.17,"1630000740099(01/12/22 to 31/12/22)PC, Wyreside, Knott End on Sea, FY6 0AA (E/E)",Electricity
People and Places,Environmental Services,Engie Power Limited,25/01/2023,PE146826,194.19,"1640000218200(01/12/22 to 31/12/22)PC, Bold St, Fleetwood, FY7 6BW (E/E)",Electricity
People and Places,Environmental Services,Engie Power Limited,25/01/2023,PE146821,146.43,"1640000258365(01/12/22 to 31/12/22)PC, River Road, Thornton Cleveleys, FY5 5LR (E/E)",Electricity
People and Places,Environmental Services,Engie Power Limited,13/01/2023,PE146471,230.01,"1610023195261(01/11/22 to 30/11/22)PC, Smallwood Hey, Pilling, Preston, PR3 6HJ (E/E)",Electricity
People and Places,Environmental Services,Engie Power Limited,13/01/2023,PE146466,295.92,"1610023251891(01/11/22 to 30/11/22)PC, Gubberford Lane, Scorton, PR3 1BL (E/E)",Electricity
People and Places,Environmental Services,Engie Power Limited,13/01/2023,PE146468,420.63,"1610004863605(01/11/22 to 30/11/22)Central Toilets Kiosk, The Esplanade, Fleetwood, FY7 7BE (A/A)",Electricity
People and Places,Environmental Services,Engie Power Limited,13/01/2023,PE146467,273.53,"1630000740099(01/11/22 to 30/11/22)PC, Wyreside, Knott End on Sea, FY6 0AA (E/E)",Electricity
People and Places,Environmental Services,Engie Power Limited,13/01/2023,PE146483,202.49,"1610013371994(01/11/22 to 30/11/22)PC, The Weind, Great Eccleston, PR3 0ZU (E/E)",Electricity
People and Places,Environmental Services,Engie Power Limited,13/01/2023,PE146482,107.42,"1620001343345(01/11/22 to 30/11/22)PC, Thornton Centre, Victoria Rd East, FY5 5DZ (A/A)",Electricity
People and Places,Environmental Services,Engie Power Limited,13/01/2023,PE146481,140.06,"1610004845322(01/11/22 to 30/11/22)PC, Beach Rd, Fleetwood, FY7 8PH (E/E)",Electricity
People and Places,Environmental Services,Engie Power Limited,13/01/2023,PE146488,133.30,"1640000258365(01/11/22 to 30/11/22)PC, River Road, Thornton Cleveleys, FY5 5LR (E/E)",Electricity
People and Places,Environmental Services,Engie Power Limited,13/01/2023,PE146487,223.11,"1630000584632(01/11/22 to 30/11/22)PC, rear of Tesco, Rough Lea Rd, Thornton Cleveleys, FY5 1BW (E/E)",Electricity
People and Places,Environmental Services,Engie Power Limited,13/01/2023,PE146486,175.37,"1640000218200(01/11/22 to 30/11/22)PC, Bold St, Fleetwood, FY7 6BW (E/E)",Electricity
People and Places,Environmental Services,Engie Power Limited,16/01/2023,PE146542,149.33,"1610023169146 PC Barton Square, Knott End, FY6 0AG 01/11/22 to 30/11/22 Est",Electricity
People and Places,Environmental Services,Engie Power Limited,16/01/2023,PE146543,140.91,"1630000819048 PC Cherestanc Square, Garstang, PR3 1EF 01/11/22 to 30/11/22 Est",Electricity
People and Places,Environmental Services,Engie Power Limited,16/01/2023,PE146545,139.04,"1610023169146 PC Barton Square, Knott End, FY6 0AG 02/10/22 to 31/10/22 Est",Electricity
People and Places,Cultural and Related Services,Engie Power Limited,25/01/2023,PE146850,239.06,"1630000841586(01/12/22 to 31/12/22)Garstang Tourist Info Ctr, Unit 1, Cherestanc Sq, Preston, PR3 1EF (E/E)",Electricity
People and Places,Cultural and Related Services,Engie Power Limited,13/01/2023,PE146478,149.14,"1630000841586(01/11/22 to 30/11/22)Garstang Tourist Info Ctr, Unit 1, Cherestanc Sq, Preston, PR3 1EF (E/E)",Electricity
People and Places,Planning and Development Servs,Engie Power Limited,13/01/2023,PE146492,813.18,"1610004828771(01/11/22 to 30/11/22)Council Depot, Chatsworth Day Centre, Chatsworth Ave, Fleetwood, FY7 8AP (E/E)",Electricity
People and Places,Cultural and Related Services,Engie Power Limited,13/01/2023,PE146495,86.14,"1640000400837(01/11/22 to 30/11/22)Beach Huts, The Esplanade, Fleetwood, FY7 6QD (E/E)",Electricity
People and Places,Cultural and Related Services,Engie Power Limited,25/01/2023,PE146822,92.91,"1640000400837(01/12/22 to 31/12/22)Beach Huts, The Esplanade, Fleetwood, FY7 6QD (E/E)",Electricity
People and Places,"Cultural, Environ and Planning",F PARKINSON LTD,24/01/2023,PE146796,253549.23,"Appointment of Principal Contractor for refurbishment works via a JCT Intermediate Building Contract with Contractor?s Design (ICD) 2016 at Fleetwood Market, Adelaide Street, Fleetwood, Lancashire FY7 6AB.",Contract (New CCR)
People and Places,"Cultural, Environ and Planning",F PARKINSON LTD,18/01/2023,PE146643,46013.78,"Appointment of Principal Contractor for refurbishment works via a JCT Intermediate Building Contract with Contractor?s Design (ICD) 2016 at Fleetwood Market, Adelaide Street, Fleetwood, Lancashire FY7 6AB.",Contract (New CCR)
People and Places,"Cultural, Environ and Planning",F PARKINSON LTD,18/01/2023,PE146642,399074.24,Contract 524584 Fleetwood Market Restoration & Refurbishment Work - Credit Note received to cancel this invoice,Contract (New CCR)
People and Places,"Cultural, Environ and Planning",F PARKINSON LTD,24/01/2023,PE146804,373512.66,"Appointment of Principal Contractor for PSDS (via SALIX Finance) works at Fleetwood Market, Adelaide Street, Fleetwood, Lancashire FY7 6AB. (Order No.4 of 4)",Contract (New CCR)
People and Places,"Cultural, Environ and Planning",F PARKINSON LTD,18/01/2023,PE146644,56525.00,"Fleetwood Market  Adelaide Street, Fleetwood, Lancashire FY7 6AB.  Refurbishment Works.  UKSPF funded works carried out under a JCT Intermediate Building Contract with Contractor?s Design (ICD) 2016",Contract (New CCR)
People and Places,"Cultural, Environ and Planning",F PARKINSON LTD,18/01/2023,PE146645,-399074.24,Contract 524584 Fleetwood Market Restoration & Refurbishment Work - Credit Note received to cancel this invoice,Contract (New CCR)
People and Places,"Cultural, Environ and Planning",F PARKINSON LTD,24/01/2023,PE146797,42546.32,"Fleetwood Market  Adelaide Street, Fleetwood, Lancashire FY7 6AB.  Refurbishment Works.  UKSPF funded works carried out under a JCT Intermediate Building Contract with Contractor?s Design (ICD) 2016",Contract (New CCR)
People and Places,"Cultural, Environ and Planning",FAIRHURST,24/01/2023,PE146805,11130.00,"To Michael Jones,Fairhurst1 Arngrove Court,Barrack Road,Newcastle.NE4 6DB Provide planning consultancy services in relation to the Wyre Beach Management Scheme.Ref DW/145706/00130 September 2022",Consultants Fees (New CCR)
Resources,Support Services,Forbes Solicitors,12/01/2023,RS146529,792.50,Professional fees 14/11/22 - 20/12/22 - CL,Legal Fees
Resources,Support Services,Forbes Solicitors,12/01/2023,RS146528,111.00,Professional fees 28/11/22 - 20/12/22 - CL,Legal Fees
Resources,Central Services to the Public,Fylde Coast Womens Aid,27/01/2023,RS146913,10000.00,Funding from Household Support Round 3 to Fylde Coast Womens Aid,Household Support Fund
People and Places,Cultural and Related Services,Fylde Coast YMCA,13/01/2023,PE146530,5000.00,"Your Move part 2 - expansion of the low impact sessions to Garstang and Fleetwood Leisure Centres, January 2023 onwards",External Coaching
People and Places,Support Services,GARRY CARR BUILDING SERVICES LTD,12/01/2023,PE145697,25210.00,"Civic Centre bay window roofs and decoration.  Per contract sum less 17550 plus additional works: Magna build repairs to bays and cills, plywood to 5 bays and upstairs, 5 overflow lead splitters, sections of Tudor panels inc render, lead to bay and paint",Responsive Building Maintenance
People and Places,Support Services,GARRY CARR BUILDING SERVICES LTD,12/01/2023,PE146497,146.00,Room 178: stain block and colour match ceiling above N Clayton`s desk,Responsive Building Maintenance
People and Places,Support Services,GARRY CARR BUILDING SERVICES LTD,16/01/2023,PE146546,280.00,Civic Centre: replace guttering and rainwater pipe to exterior room 145,Responsive Building Maintenance
People and Places,Planning and Development Servs,GARRY CARR BUILDING SERVICES LTD,11/01/2023,PE146378,179.00,For call out and attendance to Dangerous Structures as requested by Building Control for the year 2022/23,Repairs to Non-WBC Buildings
People and Places,Planning and Development Servs,GARRY CARR BUILDING SERVICES LTD,19/01/2023,PE146679,354.00,Fleetwood Market: repair tiled floor in main hall,Responsive Building Maintenance
People and Places,Support Services,GARRY CARR BUILDING SERVICES LTD,12/01/2023,PE146498,2448.00,"Civic Centre: repairs and decor to rooms 74,75 and 76",Alterations Payments
People and Places,Highways,Glasdon UK LTD,20/01/2023,PE146658,535.38,"Supply one black phoenix memorial bench with plaque. Plaque inscription to read   ?In loving memory of Pam & Cam Molton. Loved  and missed?  Please deliver bench to Copse Road Depot, Copse Road,  Fleetwood.  Please contact Bob Greaves on 07967 116043 for",Seats and Shelters (Non BM)
People and Places,"Cultural, Environ and Planning",Halcrow Group LTD,18/01/2023,PE146574,5160.91,Current approved order based on agreed additional work. Authorised by Carl Green,Consultants Fees (New CCR)
People and Places,"Cultural, Environ and Planning",Halcrow Group LTD,05/01/2023,PE146343,507.74,"FAO Marcus PhillipsJacobsBurderop ParkSwindonSN4 OQDProvide an Environmental Impact Assessment for the Wyre Beach Management Scheme as per your proposal dated 2nd April 2020.Cost 118,833.10Exp code 8273/04022",Consultants Fees (New CCR)
People and Places,"Cultural, Environ and Planning",Halcrow Group LTD,05/01/2023,PE146343,1672.78,Additional works as authorised by Carl Green,Consultants Fees (New CCR)
People and Places,"Cultural, Environ and Planning",Halcrow Group LTD,05/01/2023,PE146343,1580.22,Current approved order based on agreed additional work. Authorised by Carl Green,Consultants Fees (New CCR)
People and Places,Support Services,HARRISONS OILS LTD,20/01/2023,PE146426,855.00,Supply of Kerosene,Materials and Consumables
People and Places,"Cultural, Environ and Planning",Hermolle Associates LTD,17/01/2023,PE146581,1440.00,FAO Chris HemolleHermolle Associates LtdConsulting Civil & Structural Engineers3 Constellation HouseLockheed CourtAmy Johnson WayBLACKPOOLFY4 2RNCarry out precondition surveys for the Wyre Beach Management Scheme as per your email quote,Consultants Fees (New CCR)
Resources,Housing General Fund,Huck Properties LTD,10/01/2023,RS146395,390.00,REDACT,Minor Adaptations
Resources,Housing General Fund,Huck Properties LTD,23/01/2023,RS146737,45.00,Affordable warmth support at 61 Arundel Drive FY6 7TF,Affordable Warmth 2017/18
Resources,Housing General Fund,Huck Properties LTD,10/01/2023,RS146393,95.00,"14 Crescent East, FY5 3JF - Call out",Purchase of Tools or Equipment
People and Places,Cultural and Related Services,HUWS GRAY LTD,17/01/2023,PE146554,96.98,8x 8ft 3by3  1 x sheet 9mm marine ply,Materials and Consumables
People and Places,Cultural and Related Services,HUWS GRAY LTD,10/01/2023,PE146397,108.08,4.2 m rough cut 6 by 1,Materials and Consumables
People and Places,Cultural and Related Services,HUWS GRAY LTD,10/01/2023,PE146397,36.67,various bits for bird boxes,Materials and Consumables
People and Places,Cultural and Related Services,HUWS GRAY LTD,31/01/2023,PE146947,29.74,length of timber 3 by 4 4.8m Sand for cement,Materials and Consumables
People and Places,Support Services,HUWS GRAY LTD,25/01/2023,PE146795,62.53,Materials  Keith Urwin,Materials and Consumables
People and Places,Support Services,HUWS GRAY LTD,20/01/2023,PE146683,51.64,Materials Keith Urwin,Materials and Consumables
People and Places,Support Services,HUWS GRAY LTD,17/01/2023,PE146553,44.24,Materials,Materials and Consumables
People and Places,Support Services,HUWS GRAY LTD,17/01/2023,PE146552,27.53,Materials,Materials and Consumables
People and Places,Cultural and Related Services,HUWS GRAY LTD,19/01/2023,PE146682,50.00,roll of geo-textile,Purchase of Tools or Equipment
People and Places,Cultural and Related Services,HUWS GRAY LTD,25/01/2023,PE146879,47.31,Gate metal work and circular saw blade,Purchase of Tools or Equipment
People and Places,Environmental Services,HUWS GRAY LTD,25/01/2023,PE146795,139.60,Tape  Asbestos,Purchase of Tools or Equipment
People and Places,Environmental Services,HUWS GRAY LTD,25/01/2023,PE146795,342.47,goods itemised on Quote H5L12599. For collection on 05/12/2022,Special Works
People and Places,Environmental Services,I C BRINDLE AND CO LTD,04/01/2023,PE146301,3123.37,13NO LIFEBELT HOUSINGS WITH DOORS AND 24 in BELTS . No posts neededHousings and belts234.49 plus 75.00 carriage,Materials and Consumables
People and Places,Planning and Development Servs,IBI GROUP UK LTD,23/01/2023,PE146730,3688.00,Fees to complete the Fleetwood Regeneration Report,Town Centre Strategy Fund
Resources,Central Services to the Public,Inform CPI,18/01/2023,RS146635,1405.00,"Re: Wyndsors world of shoes, Dock St, Fleetwood, FY7 6KW (BA REf N0011094024840B) and Handy Wash Valeting, Burn Hall, Fleetwood, (BA Red N00780000010001)",Consultants Fees
Resources,Support Services,Insight Direct (UK) Limited,17/01/2023,RS146580,1165.00,"Epson WorkForce DS-7500N - document scanner -USB 2.0, LANMfr Name:EPSONMfr Part No.:B11B205331BU",Comp Hardware Purchases
Resources,Support Services,Insight Direct (UK) Limited,24/01/2023,RS146857,297.79,Videk 19 inch Wall Mount Cabinet / Wallbox15u 600 x 600mm - cabinet - 15UMfr Name: VIDEKMfr Part No.: VDK0246For Stannah Estuary Park.,Comp Hardware Purchases
Resources,Housing General Fund,IRRV Services LTD,24/01/2023,RS146765,1320.00,IRRV Forum Membership 2023 Band A ? 2 delegates,Corporate and Professional Subscriptions
People and Places,Housing General Fund,J A DICKENS LIMITED,10/01/2023,PE146405,370.00,REDACT,Minor Adaptations
People and Places,Housing General Fund,J A DICKENS LIMITED,10/01/2023,PE146405,420.00,REDACT,Minor Adaptations
Resources,Housing General Fund,J A DICKENS LIMITED,11/01/2023,RS146407,340.00,REDACT,Minor Adaptations
Resources,Housing General Fund,J A DICKENS LIMITED,11/01/2023,RS146407,440.00,REDACT,Minor Adaptations
Resources,Housing General Fund,J A DICKENS LIMITED,10/01/2023,RS146401,150.00,REDACT,Minor Adaptations
Resources,Housing General Fund,J A DICKENS LIMITED,10/01/2023,RS146401,158.00,REDACT,Minor Adaptations
Resources,Housing General Fund,J A DICKENS LIMITED,10/01/2023,RS146402,150.00,REDACT,Minor Adaptations
Resources,Housing General Fund,J A DICKENS LIMITED,10/01/2023,RS146402,158.00,REDACT,Minor Adaptations
Resources,Housing General Fund,J A DICKENS LIMITED,10/01/2023,RS146403,150.00,REDACT,Minor Adaptations
Resources,Housing General Fund,J A DICKENS LIMITED,10/01/2023,RS146403,158.00,REDACT,Minor Adaptations
Resources,Housing General Fund,J A DICKENS LIMITED,10/01/2023,RS146404,150.00,REDACT,Minor Adaptations
Resources,Housing General Fund,J A DICKENS LIMITED,10/01/2023,RS146404,158.00,REDACT,Minor Adaptations
Resources,Housing General Fund,J A DICKENS LIMITED,24/01/2023,RS146778,188.00,REDACT,Minor Adaptations
Resources,Housing General Fund,J A DICKENS LIMITED,24/01/2023,RS146778,120.00,REDACT,Minor Adaptations
Resources,Housing General Fund,J A DICKENS LIMITED,24/01/2023,RS146779,208.00,REDACT,Minor Adaptations
Resources,Housing General Fund,J A DICKENS LIMITED,24/01/2023,RS146779,160.00,REDACT,Minor Adaptations
Resources,Housing General Fund,J A DICKENS LIMITED,24/01/2023,RS146780,220.00,REDACT,Minor Adaptations
Resources,Housing General Fund,J A DICKENS LIMITED,24/01/2023,RS146780,160.00,REDACT,Minor Adaptations
Resources,Housing General Fund,J A DICKENS LIMITED,24/01/2023,RS146781,300.00,REDACT,Minor Adaptations
Resources,Housing General Fund,J A DICKENS LIMITED,24/01/2023,RS146781,320.00,REDACT,Minor Adaptations
Resources,Housing General Fund,J A DICKENS LIMITED,24/01/2023,RS146782,320.00,REDACT,Minor Adaptations
Resources,Housing General Fund,J A DICKENS LIMITED,24/01/2023,RS146782,360.00,REDACT,Minor Adaptations
Resources,Housing General Fund,J A DICKENS LIMITED,24/01/2023,RS146789,400.00,REDACT,Minor Adaptations
Resources,Housing General Fund,J A DICKENS LIMITED,24/01/2023,RS146789,420.00,REDACT,Minor Adaptations
Resources,Housing General Fund,J A DICKENS LIMITED,24/01/2023,RS146787,280.00,REDACT,Minor Adaptations
Resources,Housing General Fund,J A DICKENS LIMITED,24/01/2023,RS146787,240.00,REDACT,Minor Adaptations
Resources,Housing General Fund,J A DICKENS LIMITED,24/01/2023,RS146788,300.00,REDACT,Minor Adaptations
Resources,Housing General Fund,J A DICKENS LIMITED,24/01/2023,RS146788,380.00,REDACT,Minor Adaptations
Resources,Housing General Fund,J A DICKENS LIMITED,24/01/2023,RS146783,320.00,REDACT,Minor Adaptations
Resources,Housing General Fund,J A DICKENS LIMITED,24/01/2023,RS146783,440.00,REDACT,Minor Adaptations
Resources,Housing General Fund,J A DICKENS LIMITED,24/01/2023,RS146784,360.00,REDACT,Minor Adaptations
Resources,Housing General Fund,J A DICKENS LIMITED,24/01/2023,RS146784,430.00,REDACT,Minor Adaptations
Resources,Housing General Fund,J A DICKENS LIMITED,24/01/2023,RS146785,400.00,REDACT,Minor Adaptations
Resources,Housing General Fund,J A DICKENS LIMITED,24/01/2023,RS146785,420.00,REDACT,Minor Adaptations
Resources,Housing General Fund,J A DICKENS LIMITED,24/01/2023,RS146786,250.00,REDACT,Minor Adaptations
Resources,Housing General Fund,J A DICKENS LIMITED,24/01/2023,RS146786,324.00,REDACT,Minor Adaptations
Resources,Housing General Fund,J A DICKENS LIMITED,23/01/2023,RS146725,63.00,REDACT,Minor Adaptations
Resources,Housing General Fund,J A DICKENS LIMITED,23/01/2023,RS146725,70.00,REDACT,Minor Adaptations
Resources,Housing General Fund,J A DICKENS LIMITED,25/01/2023,RS146772,63.00,REDACT,Minor Adaptations
Resources,Housing General Fund,J A DICKENS LIMITED,25/01/2023,RS146772,70.00,REDACT,Minor Adaptations
Resources,Housing General Fund,J A DICKENS LIMITED,25/01/2023,RS146773,90.00,REDACT,Minor Adaptations
Resources,Housing General Fund,J A DICKENS LIMITED,25/01/2023,RS146773,64.00,REDACT,Minor Adaptations
Resources,Housing General Fund,J A DICKENS LIMITED,25/01/2023,RS146774,90.00,REDACT,Minor Adaptations
Resources,Housing General Fund,J A DICKENS LIMITED,25/01/2023,RS146774,64.00,REDACT,Minor Adaptations
Resources,Housing General Fund,J A DICKENS LIMITED,25/01/2023,RS146775,90.00,REDACT,Minor Adaptations
Resources,Housing General Fund,J A DICKENS LIMITED,25/01/2023,RS146775,64.00,REDACT,Minor Adaptations
Resources,Housing General Fund,J A DICKENS LIMITED,25/01/2023,RS146776,90.00,REDACT,Minor Adaptations
Resources,Housing General Fund,J A DICKENS LIMITED,25/01/2023,RS146776,64.00,REDACT,Minor Adaptations
Resources,Housing General Fund,J A DICKENS LIMITED,25/01/2023,RS146777,90.00,REDACT,Minor Adaptations
Resources,Housing General Fund,J A DICKENS LIMITED,25/01/2023,RS146777,64.00,REDACT,Minor Adaptations
People and Places,Environmental Services,J A Jones & Sons,31/01/2023,PE146959,1099.50,13/12/22 Quotation prepared for R Arrell by Daniel Kings for J. A. Jones & Sons25 x Prunus padus br 40-60cm 0.9825 x Betula pubescens br 40-60cm 0.7625 x Alnus glutinosa br 40-60cm 0.7050 x Sorbus aucuparia br 40-60cm 0.78125 x Crataeg,Maintenance of Trees and Shrubs
Resources,Housing General Fund,Jacobs Enforcement Agency,12/01/2023,RS146508,333.51,15#% commission on 2223.42 recovered,Enforcement Agents` Fees
Resources,Housing General Fund,Jacobs Enforcement Agency,19/01/2023,RS146666,364.91,15% Commission on 2432.71 recovered,Enforcement Agents` Fees
Resources,Central Services to the Public,Jacobs Enforcement Agency,25/01/2023,RS146895,73.50,Cases returned completed,Enforcement Agents` Fees
People and Places,Support Services,JADU CREATIVE LTD,17/01/2023,PE145617,1100.00,Jadu Training Update,Training - Non HR Controlled
Resources,Support Services,JADU CREATIVE LTD,12/01/2023,RS146179,450.00,Project Management - Relating to updating of bin widget for use with Singlepoint,Software Maintenance
Resources,Support Services,JADU CREATIVE LTD,12/01/2023,RS146179,2000.00,Bundled Address Base Premium FullGB and LLPG (hosted) - One Off Setup,Software Maintenance
Resources,Support Services,JADU CREATIVE LTD,12/01/2023,RS146179,8000.00,Bundled Address Base Premium FullGB and LLPG (hosted) - Annual charge,Software Maintenance
Resources,Support Services,JADU CREATIVE LTD,12/01/2023,RS146179,400.00,Web development - Relating to updating of bin widget for use with Singlepoint,Software Maintenance
Resources,Support Services,JADU CREATIVE LTD,12/01/2023,RS146179,400.00,Testing - Relating to updating of bin widget for use with Singlepoint,Software Maintenance
Resources,Support Services,JADU CREATIVE LTD,12/01/2023,RS146179,400.00,Deployment - Relating to updating of bin widget for use with Singlepoint,Software Maintenance
Resources,Housing General Fund,James Andrews Recruitment Solutions Ltd,18/01/2023,RS146629,1332.00,11-12-22 - PO 0 008124,Agency Staff
Resources,Housing General Fund,James Andrews Recruitment Solutions Ltd,05/01/2023,RS146332,1323.00,Kieron Donaldson - PO - 008124,Agency Staff
Resources,Housing General Fund,James Andrews Recruitment Solutions Ltd,05/01/2023,RS146331,1242.00,Kieron Donaldson. 04/12/22 - PO-008124,Agency Staff
Resources,Housing General Fund,James Andrews Recruitment Solutions Ltd,23/01/2023,RS146729,1224.00,Kieron Donaldson - 15/01/2023 - Po - 008124,Agency Staff
Resources,Housing General Fund,James Andrews Recruitment Solutions Ltd,23/01/2023,RS146630,918.00,Kieron Donaldson - PO - 008124,Agency Staff
Resources,Housing General Fund,James Andrews Recruitment Solutions Ltd,09/01/2023,RS146359,1278.00,18/12/22 - Kieron Donaldson - Po- 008124,Agency Staff
Resources,Housing General Fund,James Andrews Recruitment Solutions Ltd,31/01/2023,RS146914,1350.00,"22/01/2023 - Kieron Donaldson, PO- 008124",Agency Staff
People and Places,Cultural and Related Services,JANINE WALKER ART,03/01/2023,PE146274,910.00,Fee for Christmas 2022 HAF,Special Events
Resources,Support Services,JGP Resourcing LTD,12/01/2023,RS146533,2250.00,JGP Talent Tool Setup,Advertising - Recruitment
Resources,Housing General Fund,Johnson & Reeves Ltd T/A Oakleigh House,18/01/2023,RS146640,350.00,REDACT,Rough Sleeper Project/NSNO
Resources,Housing General Fund,Johnson & Reeves Ltd T/A Oakleigh House,10/01/2023,RS146371,840.00,REDACT,Rough Sleeper Project/NSNO
People and Places,Cultural and Related Services,Junction 4 Productions,20/01/2023,PE146714,2370.00,Refund of ticket sales TLT 10-12 Nov 2022,Refund of Ticket Sales to Ext Promoters
Resources,Support Services,Karen Openshaw Consultancy,04/01/2023,RS146310,475.00,To provision of Listening Ear and Mindfulness sessions 1 Apr 2022 - 31 March 2023,Occupational Health Fees
Resources,Support Services,Karen Openshaw Consultancy,04/01/2023,RS146310,45.00,Travel Expenses,Occupational Health Fees
People and Places,Cultural and Related Services,Keep Britain Tidy,20/01/2023,PE146707,369.00,Hawthorne Parks green flag application for 23/24,Green Flag and Other Awards
People and Places,Cultural and Related Services,Keep Britain Tidy,31/01/2023,PE146955,583.00,Jubilee Beach Cleveley`ssea side award (Bathing),Green Flag and Other Awards
People and Places,Cultural and Related Services,Keep Britain Tidy,31/01/2023,PE146954,583.00,Rossall beach Cleveley`s (non bathing sea side award),Green Flag and Other Awards
People and Places,Cultural and Related Services,Keep Britain Tidy,31/01/2023,PE146956,583.00,Fleetwood Marine Beach (bathing seas side award),Green Flag and Other Awards
People and Places,Cultural and Related Services,Keep Britain Tidy,31/01/2023,PE146957,583.00,Fleetwood Ferry Beach (non Bathing seas side award),Green Flag and Other Awards
People and Places,Planning and Development Servs,Keppie Massie,18/01/2023,PE146621,2750.00,Viability assessment on planning app: Craiglands Hilliyaid Road Thornton Cleveleys 22/00094/OUTMAJ,Consultants Fees
People and Places,Planning and Development Servs,Keppie Massie,17/01/2023,PE146589,3250.00,Further work on the Viability assessment relating to planning application 21/01152/OULMAJ Land off Fleetwood Road,Consultants Fees
People and Places,Environmental Services,Key Engineering & Hygiene Supplies LTD,24/01/2023,PE146810,267.20,"Hi vis vests as per quote 17087 12/12/22Delivery FAO Sandra ByrneWyre Council, Copse Road Depot, Copse Road, Fleetwood, FY7 6RP.",Community Development Initiatives
People and Places,Cultural and Related Services,Key Engineering & Hygiene Supplies LTD,19/01/2023,PE146571,93.30,FW57BKR44 - ALL WEATHER BOOT SIZE 44/10 BLACK,Uniforms
People and Places,Cultural and Related Services,Key Engineering & Hygiene Supplies LTD,19/01/2023,PE146571,5.91,A354K8RL - DERMIFLEX ULTRA PRO GLOVE BLACK,Uniforms
People and Places,Cultural and Related Services,Key Engineering & Hygiene Supplies LTD,19/01/2023,PE146571,1.97,A354K8RM DERMIFLEX ULTRA PRO GLOVE BLACK,Uniforms
People and Places,Cultural and Related Services,Key Engineering & Hygiene Supplies LTD,19/01/2023,PE146571,1.97,A354K8RS DERMIFLEX ULTRA PRO GLOVE BLACK,Uniforms
People and Places,Cultural and Related Services,Key Engineering & Hygiene Supplies LTD,19/01/2023,PE146571,1.97,A354K8RXL DERMIFLEX ULTRA PRO GLOVE BLACK,Uniforms
People and Places,Cultural and Related Services,Key Engineering & Hygiene Supplies LTD,19/01/2023,PE146571,35.76,K403BLKL KUS.KIT KLASSIC PIQUE POLO BLACK L,Uniforms
People and Places,Cultural and Related Services,Key Engineering & Hygiene Supplies LTD,19/01/2023,PE146571,44.70,K403BLKM KUS.KIT KLASSIC PIQUE POLO BLACK M,Uniforms
People and Places,Cultural and Related Services,Key Engineering & Hygiene Supplies LTD,19/01/2023,PE146571,26.82,K403BLKS KUS.KIT KLASSIC PIQUE POLO BLACK S,Uniforms
People and Places,Cultural and Related Services,Key Engineering & Hygiene Supplies LTD,19/01/2023,PE146571,53.64,K403BLKXL KUS.KIT KLASSIC PIQUE POLO BLACK XL,Uniforms
People and Places,Cultural and Related Services,Key Engineering & Hygiene Supplies LTD,19/01/2023,PE146571,36.00,LOGOEMB/WYRETHEATRES,Uniforms
People and Places,Cultural and Related Services,Key Engineering & Hygiene Supplies LTD,24/01/2023,PE146762,46.65,FW57BKR44 - ALL WEATHER BOOT SIZE 44/10 BLACK,Uniforms
People and Places,Planning and Development Servs,Key Engineering & Hygiene Supplies LTD,26/01/2023,PE146911,80.78,"Supply as your quotation 17536Delivery to Wyre Council, Copse Road Depot, Copse Road, Fleetwood, FY7 6RP",Cleaning Materials
People and Places,Environmental Services,Key Engineering & Hygiene Supplies LTD,23/01/2023,PE146741,16.65,BAI1992 BLUE DYE,Protective Clothing
People and Places,Environmental Services,Key Engineering & Hygiene Supplies LTD,23/01/2023,PE146741,16.65,BAI3592 PURPLE DYE,Protective Clothing
People and Places,Environmental Services,Key Engineering & Hygiene Supplies LTD,23/01/2023,PE146741,16.65,BAI3591 YELLOW DYE,Protective Clothing
People and Places,Environmental Services,Key Engineering & Hygiene Supplies LTD,23/01/2023,PE146741,39.12,"POFNG100/03 NITRILE GLOVES DELIVERY TO WYRE COUNCIL, CIVIC CENTRE, BRECK ROAD, POULTON, FY6 7PU",Protective Clothing
People and Places,Environmental Services,Key Engineering & Hygiene Supplies LTD,23/01/2023,PE146741,106.60,SUPPLY AS PART QUOTATION 17200ALPHAS2BH-CPXL - 20 COVERALLS,Protective Clothing
People and Places,Environmental Services,Key Engineering & Hygiene Supplies LTD,23/01/2023,PE146741,33.30,BAI3589 GREEN DYE,Protective Clothing
People and Places,Cultural and Related Services,Key Engineering & Hygiene Supplies LTD,31/01/2023,PE146936,79.90,Cafra Wanda ladies safety boot size 6,Protective Clothing
People and Places,Environmental Services,Key Engineering & Hygiene Supplies LTD,10/01/2023,PE146398,883.00,delivery of 50 x boxes blue bags to copse road @ 17.66 per box,Materials and Consumables
People and Places,Support Services,Key Engineering & Hygiene Supplies LTD,12/01/2023,PE146500,27.69,"Supply and deliver as per quotation 16855 25/11/22Delivery to Wyre Council, Copse Road Depot, Copse Road, Fleetwood, FY7 6RP.",Protective Clothing
People and Places,Support Services,Key Engineering & Hygiene Supplies LTD,12/01/2023,PE146206,343.93,"Supply and deliver as per quotation 16855 25/11/22  Delivery to Wyre Council, Copse Road Depot, Copse Road, Fleetwood, FY7 6RP.",Protective Clothing
Resources,Support Services,Key Engineering & Hygiene Supplies LTD,24/01/2023,RS146811,7.52,EVANS FOAMING LEMON SOAP 5L,Cleaning Materials
Resources,Support Services,Key Engineering & Hygiene Supplies LTD,10/01/2023,RS146399,35.28,THICKENED BLEACH 750ML,Cleaning Materials
Resources,Support Services,Key Engineering & Hygiene Supplies LTD,10/01/2023,RS146399,30.24,EAUFRESH NON ACIDIC POT POURRI TOILET CLEANER 1 LTR,Cleaning Materials
Resources,Support Services,Key Engineering & Hygiene Supplies LTD,10/01/2023,RS146399,89.25,WHITE 2PLY LUXURY TOILET ROLL 320 40 PER PACK,Cleaning Materials
Resources,Support Services,Key Engineering & Hygiene Supplies LTD,10/01/2023,RS146399,122.75,1 PLY BLUE INTERFOLD 3600 SHEETS,Cleaning Materials
Resources,Support Services,Key Engineering & Hygiene Supplies LTD,10/01/2023,RS146399,21.88,MEDIUM BLACK REFUSE SACK 18X29X34 100G,Cleaning Materials
Resources,Support Services,Key Engineering & Hygiene Supplies LTD,10/01/2023,RS146399,9.72,LATEX POWDER FREE GLOVES MED,Cleaning Materials
Resources,Support Services,Key Engineering & Hygiene Supplies LTD,10/01/2023,RS146399,5.20,20 X 15 BLEACHED DISH CLOTHS EA,Cleaning Materials
Resources,Support Services,Key Engineering & Hygiene Supplies LTD,10/01/2023,RS146399,8.94,FLORATILE GENERAL PURPOSE  CLEANER 5 LTR,Cleaning Materials
Resources,Support Services,Key Engineering & Hygiene Supplies LTD,10/01/2023,RS146399,3.70,RED STRIPE DISH CLOTH EA,Cleaning Materials
People and Places,Planning and Development Servs,Key Engineering & Hygiene Supplies LTD,17/01/2023,PE144596,173.28,2PLY WHITE JUMBO TOILET ROLL,Cleaning Materials
People and Places,Planning and Development Servs,Key Engineering & Hygiene Supplies LTD,25/01/2023,PE146753,26.76,Box - Cranberry Air Freshener,Cleaning Materials
People and Places,Planning and Development Servs,Key Engineering & Hygiene Supplies LTD,25/01/2023,PE146753,9.72,LATEX POWDER FREE GLOVES MED,Cleaning Materials
People and Places,Planning and Development Servs,Key Engineering & Hygiene Supplies LTD,25/01/2023,PE146753,10.08,EAUFRESH NON ACIDIC POT POURRI TOILET CLEANER 1 LTR,Cleaning Materials
People and Places,Planning and Development Servs,Kings Chambers,04/01/2023,RS146292,1125.00,Legal assistance in association with Lower Wild Boar - Mr Philip Robson,Consultants Fees
People and Places,Cultural and Related Services,Lancashire County Council,23/01/2023,PE146625,26.25,Hire of Meeting Room at Garstang Library  2/11/22 - 2 Hours 29/11/22 - 1.5hours 12/12/22 - 1 Hour,External Contractor
Resources,Central Services to the Public,Lancashire County Council,26/01/2023,RS146901,480.00,Wyre Council Con29 Searches for November 2022 - 30 @ 16.00 each,L.C.C. Search Fees
Resources,Central Services to the Public,Lancashire County Council,26/01/2023,RS146900,672.00,Wyre Council Con29 Searches for October 2022 - 42 @ 16.00 each,L.C.C. Search Fees
People and Places,"Cultural, Environ and Planning",Landscape Projects,18/01/2023,PE146563,4180.00,Project: Fleetwood Custom House Square - Landscape Architecture Services,Consultants Fees (New CCR)
People and Places,Cultural and Related Services,LINDA COPELAND,18/01/2023,PE146680,570.00,Fee for December 2022 HAF,Special Events
Resources,Corporate and Democratic Core,Local Government Information Unit,03/01/2023,RS146270,3237.00,"LGIU 2023 Membership Fee for Wyre Council, 1 January - 31 December 2023",Corporate and Professional Subscriptions
Resources,Housing General Fund,LOCATA HOUSING SERVICES LTD,25/01/2023,RS146863,8000.00,year 4 HPA2 Costs - Invoice 12453,Purchase of Publications
Resources,"Cultural, Environ and Planning",Lucy Moss,23/01/2023,RS146727,14674.43,Fleetwood HSHAZ Grant: 19 - 23 Adelaide St,Grants and Advances
Resources,"Cultural, Environ and Planning",Lucy Moss,03/01/2023,RS146252,47231.06,Fleetwood HSHAZ Grant: 19 - 23 Adelaide St,Grants and Advances
People and Places,Support Services,M J Wilkinson,17/01/2023,PE146565,316.80,payment of invoices dated 30/11/22 from M j wilkinson,Agency Staff
People and Places,Support Services,M J Wilkinson,17/01/2023,PE146564,422.40,payment of invoices dated 30/11/22 from M j wilkinson,Agency Staff
People and Places,Support Services,M J Wilkinson,17/01/2023,PE146566,105.60,payment of invoices dated 30/11/22 from M j wilkinson,Agency Staff
People and Places,Support Services,M J Wilkinson,17/01/2023,PE146567,422.40,payment of invoices dated 30/11/22 from M j wilkinson,Agency Staff
People and Places,Environmental Services,M J Wilkinson,17/01/2023,PE146565,236.56,payment of invoices dated 30/11/22 from M j wilkinson,Vehicle Hire
People and Places,Environmental Services,M J Wilkinson,17/01/2023,PE146568,1783.71,payment of invoices dated 30/11/22 from M j wilkinson,Vehicle Hire
People and Places,Environmental Services,M J Wilkinson,17/01/2023,PE146566,1409.85,payment of invoices dated 30/11/22 from M j wilkinson,Vehicle Hire
Resources,Housing General Fund,Mapleleaf Letting Centre LTD,23/01/2023,RS146728,700.00,"Asylum support - 3 Hampton street, Thornton rent from 23rd November 2022 to 22nd December 2022",Private Contractors
Resources,Housing General Fund,Mapleleaf Letting Centre LTD,27/01/2023,RS146925,700.00,"Asylum support 3 hampton street, thornton, rent for period 23rd january to 22nd February 2023",Private Contractors
Resources,Housing General Fund,Mapleleaf Letting Centre LTD,17/01/2023,RS146623,700.00,"Asylum support - 3 hampton street, Thornton - rent from 23/12/22 to 22/01/23",Private Contractors
Resources,Housing General Fund,Mapleleaf Letting Centre LTD,17/01/2023,RS146624,400.00,Asylum support  3 Hampton street Thornton,Private Contractors
People and Places,"Cultural, Environ and Planning",MARLAN MARITIME TECHNOLOGIES LTD,25/01/2023,PE146891,13500.00,Works to provide synoptic radar monitoring at sites across NW for Eco-CoBS project.Deployment at first site Fleetwood 16 Dec 2021.Contract until 31 March 2027.,Consultants Fees (New CCR)
People and Places,Cultural and Related Services,MAXIGIENE ENVIRONMENTAL SERVICES LTD,12/01/2023,PE146241,40.00,Marsh Mill Windmill site visits May 22,Planned Building Maintenance
People and Places,Cultural and Related Services,MAXIGIENE ENVIRONMENTAL SERVICES LTD,12/01/2023,PE146240,540.00,Marine Hall: site visits for May/Aug/Nov 22 and Feb 23,Planned Building Maintenance
People and Places,Cultural and Related Services,MAXIGIENE ENVIRONMENTAL SERVICES LTD,12/01/2023,PE146244,40.00,New Wave Cafe beach patrol mess room site visits May 22,Planned Building Maintenance
People and Places,Cultural and Related Services,MAXIGIENE ENVIRONMENTAL SERVICES LTD,12/01/2023,PE146243,90.00,Mount Pavilion site visits May & Nov 22,Planned Building Maintenance
People and Places,Cultural and Related Services,MAXIGIENE ENVIRONMENTAL SERVICES LTD,12/01/2023,PE146249,50.00,Vicarage Park gardeners mess room site visits May & Nov 22,Planned Building Maintenance
People and Places,Cultural and Related Services,MAXIGIENE ENVIRONMENTAL SERVICES LTD,12/01/2023,PE146245,150.00,Riverside Rooms & RAngers Office: Site visits May & Nov 22,Planned Building Maintenance
People and Places,Environmental Services,MAXIGIENE ENVIRONMENTAL SERVICES LTD,12/01/2023,PE146237,90.00,Garstang Rd Cemetery sire visits May & Nov 22,Planned Building Maintenance
People and Places,Environmental Services,MAXIGIENE ENVIRONMENTAL SERVICES LTD,12/01/2023,PE146230,80.00,Chatwsorth Sea Defence site visits May/Aug/Nov 22 & Feb 23,Planned Building Maintenance
People and Places,Environmental Services,MAXIGIENE ENVIRONMENTAL SERVICES LTD,12/01/2023,PE146229,60.00,Beach Rd Cemetery site visits May & Nov 22,Planned Building Maintenance
People and Places,Public Transport,MAXIGIENE ENVIRONMENTAL SERVICES LTD,12/01/2023,PE146233,50.00,Cleveleys bus statin site visits May & Nov 22,Planned Building Maintenance
People and Places,Support Services,MAXIGIENE ENVIRONMENTAL SERVICES LTD,12/01/2023,PE146232,70.00,Civic Centre Canteen & Changing Rooms: Site visits May & Nov 22,Planned Building Maintenance
People and Places,Support Services,MAXIGIENE ENVIRONMENTAL SERVICES LTD,12/01/2023,PE146231,1000.00,Civic Centre site visits May & Nov 22,Planned Building Maintenance
People and Places,Planning and Development Servs,MAXIGIENE ENVIRONMENTAL SERVICES LTD,12/01/2023,PE146235,120.00,"Copse Rd VMU - site visits covering May, Aug,Nov 22 & Feb 23",Planned Building Maintenance
People and Places,Central Services to the Public,MAXIGIENE ENVIRONMENTAL SERVICES LTD,12/01/2023,PE146247,130.00,Teanlowe 60+ community ctr site visits May/Aug/Nov 22 & Feb 23,Planned Building Maintenance
People and Places,Cultural and Related Services,MAXIGIENE ENVIRONMENTAL SERVICES LTD,12/01/2023,PE146248,290.00,Thornton Little Theatre: site visits May & Nov 22,Planned Building Maintenance
People and Places,Cultural and Related Services,MAXIGIENE ENVIRONMENTAL SERVICES LTD,12/01/2023,PE146239,40.00,Marine Hall Collonade gardeners mess room: site visits May 22,Planned Building Maintenance
People and Places,Cultural and Related Services,MAXIGIENE ENVIRONMENTAL SERVICES LTD,12/01/2023,PE146242,80.00,Memorial Park Pavilion site visits May & Nov 22,Planned Building Maintenance
People and Places,Cultural and Related Services,MAXIGIENE ENVIRONMENTAL SERVICES LTD,12/01/2023,PE146238,110.00,Garstang TIC site visits May & Nov 22,Planned Building Maintenance
People and Places,Planning and Development Servs,MAXIGIENE ENVIRONMENTAL SERVICES LTD,12/01/2023,PE146234,210.00,Copse Rd Depot: Site visits May/Aug/Nov 22 & Feb 23,Planned Building Maintenance
People and Places,Planning and Development Servs,MAXIGIENE ENVIRONMENTAL SERVICES LTD,12/01/2023,PE146236,810.00,Fleetwood Market site visits May/Aug/Nov 22 & Feb 23,Planned Building Maintenance
People and Places,Cultural and Related Services,MAXIGIENE ENVIRONMENTAL SERVICES LTD,12/01/2023,PE146246,40.00,Rossall Point observatory brew room site cisits May & Nov 22,Planned Building Maintenance
Resources,Support Services,Michael Page International Recruitment Limited,19/01/2023,RS146698,2674.44,Paul Cooper - 2 days per week for 6 months plus travel expenses. See ODR dated 29/07/22,Agency Staff
Resources,Support Services,Michael Page International Recruitment Limited,19/01/2023,RS146700,891.48,Paul Cooper - 2 days per week for 6 months plus travel expenses. See ODR dated 29/07/22,Agency Staff
Resources,Support Services,Michael Page International Recruitment Limited,19/01/2023,RS146699,200.30,Paul Cooper - 2 days per week for 6 months plus travel expenses. See ODR dated 29/07/22,Agency Staff
Resources,Support Services,Michael Page International Recruitment Limited,16/01/2023,RS146534,891.48,Paul Cooper - 2 days per week for 6 months plus travel expenses. See ODR dated 29/07/22,Agency Staff
Resources,Support Services,Michael Page International Recruitment Limited,16/01/2023,RS146559,210.40,Paul Cooper - 2 days per week for 6 months plus travel expenses. See ODR dated 29/07/22,Agency Staff
Resources,Support Services,Michael Page International Recruitment Limited,27/01/2023,RS146912,2500.00,Appointment of Interim Asset Manager,Agency Staff
Resources,Support Services,Michael Page International Recruitment Limited,05/01/2023,RS146344,2000.00,Appointment of Interim Asset Manager,Agency Staff
Resources,Support Services,Michael Page International Recruitment Limited,20/01/2023,RS146701,2500.00,Appointment of Interim Asset Manager,Agency Staff
Resources,Support Services,Michael Page International Recruitment Limited,13/01/2023,RS146537,2000.00,Appointment of Interim Asset Manager,Agency Staff
People and Places,"Cultural, Environ and Planning",Middlemarch-Environmental Ltd,11/01/2023,PE146457,675.00,FAO Chris WalshPrincipal ConsultantMiddlemarch Environmental LtdTriumph HouseBirmingham RoadAllesleyCoventryCV5 9A2 Carry out a review of the revised Habitat Regulations Assessment report as proposal process SB-MME-159434. Cost 675.,Consultants Fees (New CCR)
People and Places,Cultural and Related Services,Miles Bramwell Admin Services T/A Slimming World,26/01/2023,PE146877,2550.00,Places on the Wyre adult weight management programme with Slimming World for 2023,Weight Management Programme
People and Places,Cultural and Related Services,Miles Bramwell Admin Services T/A Slimming World,16/01/2023,PE146374,2825.00,Places on the Wyre adult weight management programme with Slimming World for 2023,Weight Management Programme
Resources,Housing General Fund,Mobility Care Services,24/01/2023,RS146813,120.00,REDACT,Minor Adaptations
Resources,Housing General Fund,Mobility Care Services,24/01/2023,RS146812,132.00,REDACT,Minor Adaptations
Resources,Housing General Fund,Mobility Care Services,24/01/2023,RS146816,66.00,REDACT,Minor Adaptations
Resources,Housing General Fund,Mobility Care Services,24/01/2023,RS146815,66.00,REDACT,Minor Adaptations
Resources,Housing General Fund,Mobility Care Services,24/01/2023,RS146814,220.00,REDACT,Minor Adaptations
Resources,Housing General Fund,Mobility Care Services,18/01/2023,RS146637,960.00,REDACT,Minor Adaptations
Resources,Housing General Fund,Mobility Care Services,10/01/2023,RS146416,132.00,REDACT,Minor Adaptations
Resources,Housing General Fund,Mobility Care Services,10/01/2023,RS146415,66.00,REDACT,Minor Adaptations
Resources,Housing General Fund,Mobility Care Services,10/01/2023,RS146414,66.00,REDACT,Minor Adaptations
Resources,Housing General Fund,Mobility Care Services,10/01/2023,RS146413,66.00,REDACT,Minor Adaptations
Resources,Housing General Fund,Mobility Care Services,10/01/2023,RS146412,66.00,REDACT,Minor Adaptations
Resources,Housing General Fund,Mobility Care Services,10/01/2023,RS146411,264.00,REDACT,Minor Adaptations
Resources,Housing General Fund,Mobility Care Services,10/01/2023,RS146410,330.00,REDACT,Minor Adaptations
Resources,Housing General Fund,Mobility Care Services,10/01/2023,RS146409,132.00,REDACT,Minor Adaptations
Resources,Housing General Fund,Mobility Care Services,10/01/2023,RS146408,132.00,REDACT,Minor Adaptations
People and Places,Environmental Services,N Power LTD,11/01/2023,PE146361,251.91,unmetered supply lighting 01/12/22 to 31/12/22 1610036002846,Electricity
People and Places,Environmental Services,N Power LTD,24/01/2023,PE144626,0.49,Electric 1/09/22 to 30/09/22,Electricity
People and Places,Environmental Services,N Power LTD,11/01/2023,PE146362,0.04,Unmetered Supply 01/12/22 to 31/12/22 1610036002855,Electricity
People and Places,Environmental Services,N Power LTD,11/01/2023,PE146362,0.32,Unmetered Supply 01/12/22 to 31/12/22 1610036002855,Electricity
People and Places,Environmental Services,N Power LTD,11/01/2023,PE146360,9.66,Unmetered CCTV electricity charges for 1-31 Dec 22 1630000862336,CCTV Running Costs
People and Places,Parking Services,N Power LTD,24/01/2023,PE144626,2.65,Electric 1/09/22 to 30/09/22,Electricity
People and Places,Parking Services,N Power LTD,24/01/2023,PE144626,0.07,CCL 01/09/22 to 30/09/22,Electricity
People and Places,Parking Services,N Power LTD,11/01/2023,PE146363,324.58,Unmetered supply 01/12/22 to 31/12/22 1620000821031,Electricity
People and Places,Parking Services,N Power LTD,11/01/2023,PE146361,1412.74,unmetered supply lighting 01/12/22 to 31/12/22 1610036002846,Electricity
People and Places,Parking Services,N Power LTD,11/01/2023,PE146362,2.00,Unmetered Supply 01/12/22 to 31/12/22 1610036002855,Electricity
People and Places,Parking Services,N Power LTD,11/01/2023,PE146362,0.05,Unmetered Supply 01/12/22 to 31/12/22 1610036002855,Electricity
People and Places,Environmental Services,N Power LTD,11/01/2023,PE146360,2.74,Unmetered CCTV electricity charges for 1-31 Dec 22 1630000862336,CCTV Running Costs
People and Places,Environmental Services,N Power LTD,11/01/2023,PE146360,84.19,Unmetered CCTV electricity charges for 1-31 Dec 22 1630000862336,CCTV Running Costs
People and Places,Environmental Services,N Power LTD,11/01/2023,PE146360,55.22,Unmetered CCTV electricity charges for 1-31 Dec 22 1630000862336,CCTV Running Costs
People and Places,Environmental Services,N Power LTD,11/01/2023,PE146360,2.74,Unmetered CCTV electricity charges for 1-31 Dec 22 1630000862336,CCTV Running Costs
People and Places,Planning and Development Servs,National World Publishing Ltd,03/01/2023,PE146275,259.20,Press notice for Blackpool Gazette and Garstang Weekly News 21.12.22,Advertising - Statutory Notices
People and Places,Planning and Development Servs,National World Publishing Ltd,27/01/2023,PE146928,199.80,Press notice for Fleetwood Weekly News 25/01/23,Advertising - Statutory Notices
People and Places,Planning and Development Servs,National World Publishing Ltd,24/01/2023,PE146770,518.40,Press notice for Garstang Courier and Blackpool Gazette 18.01.23,Advertising - Statutory Notices
Finance,Corporate and Democratic Core,NATWEST BANK,04/01/2023,WPST00090735,759.16,Natwest 02DEC GRP 99795000,Bank Charges
Finance,Corporate and Democratic Core,NATWEST BANK,23/01/2023,WPST00093425,1945.98,Worldpay Invoice 238361893,Bank Charges
Finance,Corporate and Democratic Core,NATWEST BANK,23/01/2023,WPST00093430,2604.68,Worldpay Invoice 238372490,Bank Charges
Resources,Housing General Fund,NEC Software Solutions UK Limited,19/01/2023,RS146693,750.00,SUPPLIER REFERENCE:CRM 139308 - SAGRMI327 Valuation Office Data Extract,Purchase of Tools or Equipment
Resources,Housing General Fund,NEC Software Solutions UK Limited,17/01/2023,RS146632,1500.00,SUPPLIER REFERENCE:DW / CRM 139290Subsidy Workbook 2023/24,Purchase of Tools or Equipment
Resources,Support Services,NEC Software Solutions UK Limited,27/01/2023,RS146921,925.00,MB / 139530English CT Support Fund Changes 2023,Software Maintenance
Resources,Support Services,NEC Software Solutions UK Limited,17/01/2023,RS146631,5000.00,LT / CRM 138729 - Citizen Access ? Campaigns (CA-CAM)23.02.23 ? 22.02.24,Software Maintenance
People and Places,Environmental Services,Nicholaus Cardwell Building & Maintenance,24/01/2023,PE143075,745.00,RE:50 KENT ST FLEETWOOD     TO CLEAR RUBBISH THROUGH OUT THE FLAT  GATHERING ALL PERSONAL POSSESSIONS READY FOR MOVING  PRICE INCLUDES 2 X MEN FOR ONE DAY AND ONE TRAILER OF RUBBISH PRICE FOR ABOVE                           465.00,Boarding Up Premises/House Clearance
Resources,Support Services,Nominet UK,31/01/2023,RS146963,5.00,Invoice Charge,Internet and Telephone Charges
Resources,Support Services,Nominet UK,31/01/2023,RS146963,760.94,Call off contract year 3 - Nominet PSN DNS service,Internet and Telephone Charges
Resources,Support Services,North West Employers,10/01/2023,RS146448,7650.00,Chief Executive Recruitment Support,Advertising - Recruitment
People and Places,Cultural and Related Services,Northern Citrus Products LTD,20/01/2023,PE146708,100.26,Kiosk stock,Kiosk stock
People and Places,Cultural and Related Services,Northern Citrus Products LTD,20/01/2023,PE146705,863.52,Kiosk stock,Kiosk stock
People and Places,Parking Services,NSL Services Group,12/01/2023,PE146294,4238.52,Car Park Enforcement Nov 22,Private Contractors
People and Places,Parking Services,NSL Services Group,19/01/2023,PE146678,2779.92,Car Park Enforcement Dec 22,Private Contractors
People and Places,Cultural and Related Services,Nurture Landscapes Ltd,17/01/2023,PE146582,3630.00,Christmas Tree at Marine Hall,Advertising - General
People and Places,Planning and Development Servs,Nurture Landscapes Ltd,17/01/2023,PE146582,1890.00,Christmas Tree at Fleetwood Market,Advertising - General
Resources,Support Services,Officestore UK,23/01/2023,RS146396,534.22,"2 x Silverline 8 door locker, black OSUDMG",Purchase Furniture
Resources,Support Services,Officestore UK,06/01/2023,RS146180,1436.16,12 x 1600x800 Single Upright Rectangular Desk WhiteBlack Code: OU9228  6 x 1600 Straight Upholstered Desktop Screen - Black Ref  DMS1600SBK  Code: OS9790 12 x Marlos Mesh Back Office Chair With Folding Arms - Black Ref CH0790BK Code: OS9866  8 x Club Stac,Purchase Furniture
Resources,Support Services,Orange PCS LTD,13/01/2023,RS145916,-590.71,credit for account 07870263446Dvpn B Router 5Yr Charging_6404/43103,Mobile Devices
People and Places,Cultural and Related Services,PENDLE PRODUCTIONS,31/01/2023,PE146952,4800.00,"6 performances of Aladdin across 20th, 21st & 22nd December 2022 will be 4800 plus VAT",Special Events
Resources,Support Services,Phoenix Software LTD,09/01/2023,RS146376,6000.00,Azure Landing Zone,Consultants Fees
People and Places,Cultural and Related Services,Play Inclusion Project,30/01/2023,PE146933,4097.00,Play Inclusion ProjectPLACESFee per place - 15 x number of places - 60 = 900 STAFF50 staff at 5.5 hours x 10.50 = 2887.50 Planning/ coordinator delivery 42 hours x 12 =504.00Total provision/staff cost =  3391.50 FOODFood per h,External Coaching
People and Places,Environmental Services,Poulton Pets LTD,19/01/2023,PE146685,1597.50,Provision of stray dog kennelling service 2022/23,Impounded Dogs Costs
People and Places,Planning and Development Servs,PPL PRS Ltd,17/01/2023,PE142248,406.86,CHARGES  FOR ROYALTIES,Performing Rights
People and Places,Cultural and Related Services,PPL PRS Ltd,04/01/2023,PE146316,778.04,PRS & PPL for Marine Hall ending 5/4/22,Performing Rights
People and Places,Cultural and Related Services,PPL PRS Ltd,04/01/2023,PE146315,148.60,PRS & PPL - TLT 5/7/22,Performing Rights
Resources,Corporate and Democratic Core,PR Chauffeuring Services,16/01/2023,RS146446,891.00,Chauffeuring services for the month of December 2022.,Attendant Chauffeur Service
Resources,Corporate and Democratic Core,PR Chauffeuring Services,05/01/2023,RS146340,2124.00,Mayors`s Chauffeuring journeys - November 2022,Attendant Chauffeur Service
People and Places,Planning and Development Servs,Preston City Council,16/01/2023,PE143085,60.84,Posters for Jubilee event at Fleetwood Market,Special Events
People and Places,Planning and Development Servs,Preston City Council,16/01/2023,PE143085,107.50,Leaflets for Jubilee event at Fleetwood Market,Special Events
People and Places,Planning and Development Servs,Preston City Council,16/01/2023,PE143085,55.56,AO On-site Posters for Jubilee Event,Special Events
People and Places,Cultural and Related Services,Preston City Council,16/01/2023,PE143085,276.32,"Leaflets, Posters, Print Theatres",Advertising - General
People and Places,Cultural and Related Services,Preston City Council,16/01/2023,PE143085,160.02,6-sheet bus stop posters for Wyre Theatres x 9,Advertising - General
People and Places,Planning and Development Servs,Preston City Council,16/01/2023,PE143085,368.68,40k Leaflet Print for FM,Promotions - General
People and Places,Cultural and Related Services,PRINCESS PARTIES BLACKPOOL,20/01/2023,PE146710,680.00,Christmas Elves,Artistes' Fees
People and Places,"Cultural, Environ and Planning",Purcell Architecture Limited,24/01/2023,PE146801,1566.79,PSDS Additional Site Visits for Structural Inspection (Studio One) at Fleetwood Market (includes 12.5% Subconsultant Admin Markup),Consultants Fees (New CCR)
People and Places,"Cultural, Environ and Planning",Purcell Architecture Limited,24/01/2023,PE146800,11096.72,Public Sector Decarbonisation Scheme.  Studio One (sub-consult) proposal for works to RIBA Stage 3 preliminary study and design development,Consultants Fees (New CCR)
People and Places,"Cultural, Environ and Planning",Purcell Architecture Limited,24/01/2023,PE146799,38340.47,"Fleetwood Market Hall: Public Sector Decarbonisation Scheme.  (Fee Proposal for works to RIBA Stage 4)Purcell (Architects) 17,310Parker Wilson (MEP) 12,712.50 + 12.5%David Humphries & Associates (QS) 5,981.25 + 12.5%",Consultants Fees (New CCR)
People and Places,Environmental Services,RENTOKIL INITIAL UK LTD,16/01/2023,PE146432,-1079.91,Clinical waste collection and disposal services to Wyre domestic customers.  To include provision of containers for financial year 2022/23,Disposal Costs Hazardous Waste
Resources,Housing General Fund,RHEA PROJECTS LTD,16/01/2023,RS146435,10740.00,"Payment of invoice RP-1718 affordable warmth support at 1A Gorse avenue, 3 mayfeild avenue, 386 fleetwood road, 13 warren avenue, 15 roscoe avenue",Affordable Warmth 2017/18
Resources,Central Services to the Public,Royal Mail Group PLC,20/01/2023,RS144446,397.70,Offset via RS144441:Response Services,Postage
Resources,Central Services to the Public,Royal Mail Group PLC,20/01/2023,RS144446,22.76,Top Up,Postage
Resources,Central Services to the Public,Royal Mail Group PLC,27/01/2023,RS146909,87.50,Electoral Registration - Monthly Collection - Licence Fee - Feb 2023,Postage
People and Places,Planning and Development Servs,Rsk Adas LTD,11/01/2023,PE146136,450.00,Agricultural advise for planning application from April 2022 - End March 2023,Consultants Fees
People and Places,Planning and Development Servs,Rsk Adas LTD,11/01/2023,PE146135,450.00,Agricultural advise for planning application from April 2022 - End March 2023,Consultants Fees
People and Places,Planning and Development Servs,Rsk Adas LTD,11/01/2023,PE146134,450.00,Agricultural advise for planning application from April 2022 - End March 2023,Consultants Fees
Resources,Housing General Fund,Salvation Army,05/01/2023,RS146333,15271.44,Refuge Resettlement - 2022/23 Q3.,Private Contractors
Finance,Central Services to the Public,SANTANDER,09/01/2023,WPST00091379,721.46,santander bank charges 5/1,Plastic Cards Processing Fees
People and Places,Planning and Development Servs,Scope iT Ltd,16/01/2023,PE146548,25.00,Fleetwood Market lead  paint sample,Planned Building Maintenance
People and Places,Planning and Development Servs,Scope iT Ltd,12/01/2023,PE146499,3335.00,Fleetwood Market refurbishment survey,Responsive Building Maintenance
People and Places,Support Services,SHARD SURFACING LTD,18/01/2023,PE146636,750.00,"Cottam Hall Pavillion, PoultonWorks as per site meeting (2 worse patches on main drive and smaller area towards pavilion).Works this week or early next week.Requested by Jane FergusonBarrier code 7273 labour 30%",Private Contractors
People and Places,Support Services,SHARD SURFACING LTD,18/01/2023,PE146636,1750.00,"Cottam Hall Pavillion, PoultonWorks as per site meeting (2 worse patches on main drive and smaller area towards pavilion).Works this week or early next week.Requested by Jane FergusonBarrier code 7273 materials 70%",Private Contractors
People and Places,Support Services,SITEMORSE (UK SALES) LTD,31/01/2023,PE146965,849.00,Website audits,Public Relations
Resources,Housing General Fund,Solon Security LTD,23/01/2023,RS146738,519.18,Payment of invoice no.SI23000152,Purchase of Tools or Equipment
People and Places,Planning and Development Servs,Suez Recycling And Recovery UK LTD,09/01/2023,PE146348,1091.97,waste removal market suez June 22 to March 23,Refuse Collection
People and Places,"Cultural, Environ and Planning",Susannah Bleakley Consulting,27/01/2023,PE146910,3191.08,ECO-CoBS Project,Consultants Fees (New CCR)
People and Places,Parking Services,TARMAC TRADING LTD,16/01/2023,PE146214,1072.44, payment of invoices 9046301938 +9046271611  goods received already  for delivery of aggregate  limestone  on 06/12/22 and 13/12/22  to beach road and chatsworth ave,"Paths, Roads and Car Park Mtnce Annual"
People and Places,Parking Services,TARMAC TRADING LTD,16/01/2023,PE146503,1081.62, payment of invoices 9046301938 +9046271611  goods received already  for delivery of aggregate  limestone  on 06/12/22 and 13/12/22  to beach road and chatsworth ave,"Paths, Roads and Car Park Mtnce Annual"
People and Places,Cultural and Related Services,Taylors Of Cleveleys LTD,09/01/2023,PE146366,1930.00,TAYLORS - Hot Food Order - HAF Christmas 202219th to the 22nd of DecemberYMCA ThorntonYMCA FleetwoodAbsolute Futbol - Stannah SchoolAbsolute Futbol - Over Wyre,External Coaching
Resources,Corporate and Democratic Core,The Association Of Democratic Services Officers,16/01/2023,RS145442,198.00,"Membership subscription to Association of Democratic Services Officers (ADSO) 2022/23 Renewal of ADSO membership for Peter Foulsham, Marianne Unwin, Duncan Jowitt and Daphne Courtenage The fee is unchanged at 55 plus VAT for the coming year with the usua",Technical Training
Resources,Corporate and Democratic Core,The Association Of Democratic Services Officers,20/01/2023,RS146702,350.00,Job Advert - Democratic Services Officer,Advertising - Recruitment
People and Places,"Cultural, Environ and Planning",The Lancashire Wildlife Trust Ltd,19/01/2023,PE146657,9200.00,Part 1 of 3 payments 2022/2340% of year 1 of the ECO-CoBS Project,Consultants Fees (New CCR)
People and Places,"Cultural, Environ and Planning",The Lancashire Wildlife Trust Ltd,19/01/2023,PE146657,170.83,Travel expenses,Consultants Fees (New CCR)
Resources,Support Services,THE NETWORKING PEOPLE (TNP) LTD,16/01/2023,RS146450,682.70,x5 TNPSFP-SFP-H10GB coded to Fortinet,Comp Hardware Purchases
Resources,Support Services,THE NETWORKING PEOPLE (TNP) LTD,23/01/2023,RS146760,3762.00,"0.1/0.1Gb Internet service at Marine Hall, FY7 6HF (Satellite Site) - Annual Rental 03/02/2023 - 02/02/2024",Internet and Telephone Charges
Resources,Support Services,THE NETWORKING PEOPLE (TNP) LTD,24/01/2023,RS146794,2200.00,Block of 40 RMACs,Consultants Fees
People and Places,Planning and Development Servs,The Planning Inspectorate,18/01/2023,PE146663,7509.75,Wyre Local Plan Partial Review Examination,Consultants Fees
People and Places,Support Services,The Play Inspection Company LTD,05/01/2023,PE146330,1843.00,Independent annual playground inspections to inspect and report on 38 sites,Playground Equipment
Resources,Support Services,Thomson Reuters,25/01/2023,RS146868,15077.64,Information Services & Software Solutions (217725)Invoice 6801424267,Purchase of Publications
People and Places,Cultural and Related Services,Tina Warren,03/01/2023,PE146282,715.90,Fee for December 2022 HAF including payment for support worker at each session,Special Events
Resources,Support Services,TMR Executive Agency LTD,23/01/2023,RS146716,701.32,Franking machine rental 8th February 2023 - 7th February 2024,Purchase of Tools or Equipment
People and Places,Planning and Development Servs,Total Fire Group Limited,23/01/2023,PE146681,800.00,Copse Road Depot: fire risk assessment,Planned Building Maintenance
People and Places,Cultural and Related Services,Total Fire Group Limited,16/01/2023,PE146444,595.00,"Thornton Little Theater, fire risk assessment",Planned Building Maintenance
People and Places,Environmental Services,Travis Perkins Trading CO LTD,17/01/2023,PE146628,1456.00,56 bags QC6 ( ONE PALLET ),Materials and Consumables
People and Places,Environmental Services,Veolia ES (UK) LTD,17/01/2023,PE146614,4584.66,Bin delivery,"Provision of Bins, Boxes and Sacks"
People and Places,Environmental Services,Veolia ES (UK) LTD,17/01/2023,PE146614,178535.32,Domestic Waste Management Collection Contract 2022/23,Refuse Collection Contract
People and Places,Environmental Services,Veolia ES (UK) LTD,17/01/2023,PE146614,1928.67,Pension pass through,Refuse Collection Contract
People and Places,"Cultural, Environ and Planning",Vivid Resourcing Ltd,03/01/2023,PE145759,7440.00,Fleetwood Market Project  - Steve Solsby time,Consultants Fees (New CCR)
People and Places,"Cultural, Environ and Planning",Vivid Resourcing Ltd,10/01/2023,PE146290,5280.00,Fleetwood Market Project  - Steve Solsby time,Consultants Fees (New CCR)
Resources,"Cultural, Environ and Planning",Ward Hadaway LLP,04/01/2023,RS146303,1258.00,Professional charges for advice re Fleetwood Golf - Wyre |Beach Management Consultants,Consultants Fees (New CCR)
Resources,Current Assets,Whistl Uk Limited,25/01/2023,RS146861,413.56,Annual postage charges 01/04/2022 - 31/03/2022,Stores Purchases
Resources,Current Assets,Whistl Uk Limited,31/01/2023,RS146943,158.33,Annual postage charges 01/04/2022 - 31/03/2022,Stores Purchases
Resources,Current Assets,Whistl Uk Limited,16/01/2023,RS146445,26.72,Annual postage charges 01/04/2022 - 31/03/2022,Stores Purchases
Resources,Current Assets,Whistl Uk Limited,18/01/2023,RS146647,211.39,Annual postage charges 01/04/2022 - 31/03/2022,Stores Purchases
Resources,Current Assets,Whistl Uk Limited,18/01/2023,RS146647,17.10,Annual postage charges 01/04/2022 - 31/03/2022,Stores Purchases
Resources,Current Assets,Whistl Uk Limited,04/01/2023,RS146289,251.88,Annual postage charges 01/04/2022 - 31/03/2022,Stores Purchases
Resources,Current Assets,Whistl Uk Limited,04/01/2023,RS146289,3.60,Annual postage charges 01/04/2022 - 31/03/2022,Stores Purchases
People and Places,"Cultural, Environ and Planning",WSP Real Estate and Infrastructure Limited,27/01/2023,PE146931,18317.32,"Project Management Services  Annual amount 78,000Potentially for 4 years.",Consultants Fees (New CCR)
People and Places,Cultural and Related Services,www.urbancomedy.co.uk,20/01/2023,PE146717,3600.00,Refund of ticket sales,Refund of Ticket Sales to Ext Promoters
